Workbook

Sheet Yield Curve
B2: Simple Yield Curve for Demo Purposes
B4: Yield Curve | E4: Discount Factors
B6: Currency | C6: USD | E6: Time, t | F6: DiscFactor
B7: ZeroRate | C7: 0.0302281234 | E7: 1 | F7: =EXP(-ZeroRate*E7) -> 0.9702241775
E8: 2 | F8: 0.9413349545
E9: 3 | F9: 0.913305932
E10: 4 | F10: 0.8861114966
E11: 5 | F11: 0.859726798
E12: 6 | F12: 0.8341277254
E13: 7 | F13: 0.8092908863
E14: 8 | F14: 0.7851935845
E15: 9 | F15: 0.7618137997
E16: 10 | F16: 0.7391301672

Sheet Credit Curve
I1: Instructions | AE1: Hazard Rates | BF1: Shifted-Hazard Rates
C2: Credit Model | K2: 1.CDS Curve Specification | O2: 2. CDS Market Data | S2: Calibration Results | X2: Hazard Rates & Probabilities | AH2: Bump 1Y | AL2: Bump 2Y | AP2: Bump 3 Y | AT2: Bump 4Y | AX2: Bump 5Y | BB2: Bump 10Y
C3: In this workbook we demonstrate how to calibrate a credit curve to CDS instruments. | K3: CreditName | M3: USA_SOV | O3: Tenor | P3: Par Spread (bps) | Q3: Par Spread (%) | S3: Time (Years) | T3: Hazard Rate | X3: Time, T | Y3: Hazard Rate | Z3: P(Survive), Q(T) | AA3: P(Default) | AB3: DiscFact, P(0,T) | AG3: Time, T | AH3: Hazard Rate | AI3: Shifted-Hazard | AJ3: P(Survive), Q(T) | AK3: P(Default) | AL3: Hazard Rate | AM3: Shifted-Hazard | AN3: P(Survive), Q(T) | AO3: P(Default) | AP3: Hazard Rate | AQ3: Shifted-Hazard | AR3: P(Survive), Q(T) | AS3: P(Default) | AT3: Hazard Rate | AU3: Shifted-Hazard | AV3: P(Survive), Q(T) | AW3: P(Default) | AX3: Hazard Rate | AY3: Shifted-Hazard | AZ3: P(Survive), Q(T) | BA3: P(Default) | BB3: Hazard Rate | BC3: Shifted-Hazard | BD3: P(Survive), Q(T) | BE3: P(Default)
C4: We can calibrate to Corporate Bonds or CDS, here we calibrate to CDS. | K4: Currency | M4: USD | O4: 1Y | P4: 10 | Q4: =P4/10000 -> 0.001 | S4: 1 | T4: =N27 -> 0.001666666691 | X4: 0 | Y4: =Interpolate(X4,$S$4:$S$9,$T$4:$T$9) -> 0.001666666691 | Z4: 1 | AA4: 0 | AB4: 1 | AG4: 0 | AI4: Rate | AJ4: 1 | AK4: 0 | AM4: Rate | AN4: 1 | AO4: 0 | AQ4: Rate | AR4: 1 | AS4: 0 | AU4: Rate | AV4: 1 | AW4: 0 | AY4: Rate | AZ4: 1 | BA4: 0 | BC4: Rate | BD4: 1 | BE4: 0
K5: PremiumFrequency | M5: QUARTERLY | O5: 2Y | P5: 12 | Q5: 0.0012 | S5: 2 | T5: 0.002344252376 | X5: =YearFraction -> 0.25 | Y5: =Interpolate(X5,$S$4:$S$9,$T$4:$T$9) -> 0.001666666691 | Z5: =EXP(-Y5*YearFraction)*Z4 -> 0.9995834201 | AA5: =Z4-Z5 -> 0.0004165798792 | AB5: =EXP(-ZeroRate*$X5) -> 0.9924714517 | AG5: =YearFraction -> 0.25 | AH5: =HazardRate1Y+ShiftSize -> 0.001666766691 | AI5: =Interpolate($AG5,$S$4:$S$9,AH$5:AH$10) -> 0.001666766691 | AJ5: =EXP(-AI5*YearFraction)*AJ4 -> 0.9995833951 | AK5: =AJ4-AJ5 -> 0.0004166048688 | AL5: =HazardRate1Y -> 0.001666666691 | AM5: =Interpolate($AG5,$S$4:$S$9,AL$5:AL$10) -> 0.001666666691 | AN5: =EXP(-AM5*YearFraction)*AN4 -> 0.9995834201 | AO5: =AN4-AN5 -> 0.0004165798792 | AP5: =HazardRate1Y -> 0.001666666691 | AQ5: =Interpolate($AG5,$S$4:$S$9,AP$5:AP$10) -> 0.001666666691 | AR5: =EXP(-AQ5*YearFraction)*AR4 -> 0.9995834201 | AS5: =AR4-AR5 -> 0.0004165798792 | AT5: =HazardRate1Y -> 0.001666666691 | AU5: =Interpolate($AG5,$S$4:$S$9,AT$5:AT$10) -> 0.001666666691 | AV5: =EXP(-AU5*YearFraction)*AV4 -> 0.9995834201 | AW5: =AV4-AV5 -> 0.0004165798792 | AX5: =HazardRate1Y -> 0.001666666691 | AY5: =Interpolate($AG5,$S$4:$S$9,AX$5:AX$10) -> 0.001666666691 | AZ5: =EXP(-AY5*YearFraction)*AZ4 -> 0.9995834201 | BA5: =AZ4-AZ5 -> 0.0004165798792 | BB5: =HazardRate1Y -> 0.001666666691 | BC5: =Interpolate($AG5,$S$4:$S$9,BB$5:BB$10) -> 0.001666666691 | BD5: =EXP(-BC5*YearFraction)*BD4 -> 0.9995834201 | BE5: =BD4-BD5 -> 0.0004165798792
C6: Inputs: | D6: CDS Par Spread Quotes | K6: RecoveryRate, R | M6: 0.4 | O6: 3Y | P6: 15 | Q6: 0.0015 | S6: 3 | T6: 0.003550659857 | X6: =X5+YearFraction -> 0.5 | Y6: =Interpolate(X6,$S$4:$S$9,$T$4:$T$9) -> 0.001666666691 | Z6: 0.9991670138 | AA6: 0.0004164063404 | AB6: 0.9849995825 | AG6: =AG5+YearFraction -> 0.5 | AH6: =HazardRate2Y -> 0.002344252376 | AI6: =Interpolate($AG6,$S$4:$S$9,AH$5:AH$10) -> 0.001666766691 | AJ6: 0.9991669638 | AK6: 0.0004164313092 | AL6: =HazardRate2Y+ShiftSize -> 0.002344352376 | AM6: =Interpolate($AG6,$S$4:$S$9,AL$5:AL$10) -> 0.001666666691 | AN6: 0.9991670138 | AO6: 0.0004164063404 | AP6: =HazardRate2Y -> 0.002344252376 | AQ6: =Interpolate($AG6,$S$4:$S$9,AP$5:AP$10) -> 0.001666666691 | AR6: 0.9991670138 | AS6: 0.0004164063404 | AT6: =HazardRate2Y -> 0.002344252376 | AU6: =Interpolate($AG6,$S$4:$S$9,AT$5:AT$10) -> 0.001666666691 | AV6: 0.9991670138 | AW6: 0.0004164063404 | AX6: =HazardRate2Y -> 0.002344252376 | AY6: =Interpolate($AG6,$S$4:$S$9,AX$5:AX$10) -> 0.001666666691 | AZ6: 0.9991670138 | BA6: 0.0004164063404 | BB6: =HazardRate2Y -> 0.002344252376 | BC6: =Interpolate($AG6,$S$4:$S$9,BB$5:BB$10) -> 0.001666666691 | BD6: 0.9991670138 | BE6: 0.0004164063404
C7: Outputs: | D7: Hazard Rates (Instantaneous Probability of Default) | K7: PremiumYearFraction, Dt | M7: 0.25 | O7: 4Y | P7: 17 | Q7: 0.0017 | S7: 4 | T7: 0.00390281006 | X7: 0.75 | Y7: =Interpolate(X7,$S$4:$S$9,$T$4:$T$9) -> 0.001666666691 | Z7: 0.9987507809 | AA7: 0.0004162328739 | AB7: 0.9775839656 | AG7: 0.75 | AH7: =HazardRate3Y -> 0.003550659857 | AI7: =Interpolate($AG7,$S$4:$S$9,AH$5:AH$10) -> 0.001666766691 | AJ7: 0.998750706 | AK7: 0.0004162578218 | AL7: =HazardRate3Y -> 0.003550659857 | AM7: =Interpolate($AG7,$S$4:$S$9,AL$5:AL$10) -> 0.001666666691 | AN7: 0.9987507809 | AO7: 0.0004162328739 | AP7: =HazardRate3Y+ShiftSize -> 0.003550759857 | AQ7: =Interpolate($AG7,$S$4:$S$9,AP$5:AP$10) -> 0.001666666691 | AR7: 0.9987507809 | AS7: 0.0004162328739 | AT7: =HazardRate3Y -> 0.003550659857 | AU7: =Interpolate($AG7,$S$4:$S$9,AT$5:AT$10) -> 0.001666666691 | AV7: 0.9987507809 | AW7: 0.0004162328739 | AX7: =HazardRate3Y -> 0.003550659857 | AY7: =Interpolate($AG7,$S$4:$S$9,AX$5:AX$10) -> 0.001666666691 | AZ7: 0.9987507809 | BA7: 0.0004162328739 | BB7: =HazardRate3Y -> 0.003550659857 | BC7: =Interpolate($AG7,$S$4:$S$9,BB$5:BB$10) -> 0.001666666691 | BD7: 0.9987507809 | BE7: 0.0004162328739
K8: Notional | M8: 1000000 | O8: 5Y | P8: 24.33 | Q8: 0.002433 | S8: 5 | T8: 0.009389334297 | X8: 1 | Y8: =Interpolate(X8,$S$4:$S$9,$T$4:$T$9) -> 0.001666666691 | Z8: 0.9983347214 | AA8: 0.0004160594797 | AB8: 0.9702241775 | AG8: 1 | AH8: =HazardRate4Y -> 0.00390281006 | AI8: =Interpolate($AG8,$S$4:$S$9,AH$5:AH$10) -> 0.001666766691 | AJ8: 0.9983346216 | AK8: 0.0004160844068 | AL8: =HazardRate4Y -> 0.00390281006 | AM8: =Interpolate($AG8,$S$4:$S$9,AL$5:AL$10) -> 0.001666666691 | AN8: 0.9983347214 | AO8: 0.0004160594797 | AP8: =HazardRate4Y -> 0.00390281006 | AQ8: =Interpolate($AG8,$S$4:$S$9,AP$5:AP$10) -> 0.001666666691 | AR8: 0.9983347214 | AS8: 0.0004160594797 | AT8: =HazardRate4Y+ShiftSize -> 0.00390291006 | AU8: =Interpolate($AG8,$S$4:$S$9,AT$5:AT$10) -> 0.001666666691 | AV8: 0.9983347214 | AW8: 0.0004160594797 | AX8: =HazardRate4Y -> 0.00390281006 | AY8: =Interpolate($AG8,$S$4:$S$9,AX$5:AX$10) -> 0.001666666691 | AZ8: 0.9983347214 | BA8: 0.0004160594797 | BB8: =HazardRate4Y -> 0.00390281006 | BC8: =Interpolate($AG8,$S$4:$S$9,BB$5:BB$10) -> 0.001666666691 | BD8: 0.9983347214 | BE8: 0.0004160594797
C9: Assumptions | K9: LossGivenDefault, LGD | M9: =Notional*(1-RecoveryRate) -> 600000 | O9: 10Y | P9: 30 | Q9: 0.003 | S9: 10 | T9: 0.006131510234 | X9: 1.25 | Y9: =Interpolate(X9,$S$4:$S$9,$T$4:$T$9) -> 0.002344252376 | Z9: 0.9977498057 | AA9: 0.0005849157203 | AB9: 0.9629197979 | AG9: 1.25 | AH9: =HazardRate5Y -> 0.009389334297 | AI9: =Interpolate($AG9,$S$4:$S$9,AH$5:AH$10) -> 0.002344252376 | AJ9: 0.9977497059 | AK9: 0.0005849156618 | AL9: =HazardRate5Y -> 0.009389334297 | AM9: =Interpolate($AG9,$S$4:$S$9,AL$5:AL$10) -> 0.002344352376 | AN9: 0.9977497808 | AO9: 0.000584940664 | AP9: =HazardRate5Y -> 0.009389334297 | AQ9: =Interpolate($AG9,$S$4:$S$9,AP$5:AP$10) -> 0.002344252376 | AR9: 0.9977498057 | AS9: 0.0005849157203 | AT9: =HazardRate5Y -> 0.009389334297 | AU9: =Interpolate($AG9,$S$4:$S$9,AT$5:AT$10) -> 0.002344252376 | AV9: 0.9977498057 | AW9: 0.0005849157203 | AX9: =HazardRate5Y+ShiftSize -> 0.009389434297 | AY9: =Interpolate($AG9,$S$4:$S$9,AX$5:AX$10) -> 0.002344252376 | AZ9: 0.9977498057 | BA9: 0.0005849157203 | BB9: =HazardRate5Y -> 0.009389334297 | BC9: =Interpolate($AG9,$S$4:$S$9,BB$5:BB$10) -> 0.002344252376 | BD9: 0.9977498057 | BE9: 0.0005849157203
C10: Hazard Rates are Deterministic & Piecewise Contant | X10: 1.5 | Y10: =Interpolate(X10,$S$4:$S$9,$T$4:$T$9) -> 0.002344252376 | Z10: 0.9971652327 | AA10: 0.0005845730232 | AB10: 0.9556704097 | AG10: 1.5 | AH10: =HazardRate10Y -> 0.006131510234 | AI10: =Interpolate($AG10,$S$4:$S$9,AH$5:AH$10) -> 0.002344252376 | AJ10: 0.997165133 | AK10: 0.0005845729647 | AL10: =HazardRate10Y -> 0.006131510234 | AM10: =Interpolate($AG10,$S$4:$S$9,AL$5:AL$10) -> 0.002344352376 | AN10: 0.9971651828 | AO10: 0.0005845979377 | AP10: =HazardRate10Y -> 0.006131510234 | AQ10: =Interpolate($AG10,$S$4:$S$9,AP$5:AP$10) -> 0.002344252376 | AR10: 0.9971652327 | AS10: 0.0005845730232 | AT10: =HazardRate10Y -> 0.006131510234 | AU10: =Interpolate($AG10,$S$4:$S$9,AT$5:AT$10) -> 0.002344252376 | AV10: 0.9971652327 | AW10: 0.0005845730232 | AX10: =HazardRate10Y -> 0.006131510234 | AY10: =Interpolate($AG10,$S$4:$S$9,AX$5:AX$10) -> 0.002344252376 | AZ10: 0.9971652327 | BA10: 0.0005845730232 | BB10: =HazardRate10Y+ShiftSize -> 0.006131610234 | BC10: =Interpolate($AG10,$S$4:$S$9,BB$5:BB$10) -> 0.002344252376 | BD10: 0.9971652327 | BE10: 0.0005845730232
C11: (This is standard industry practice) | X11: 1.75 | Y11: =Interpolate(X11,$S$4:$S$9,$T$4:$T$9) -> 0.002344252376 | Z11: 0.9965810022 | AA11: 0.0005842305269 | AB11: 0.9484755989 | AG11: 1.75 | AI11: =Interpolate($AG11,$S$4:$S$9,AH$5:AH$10) -> 0.002344252376 | AJ11: 0.9965809025 | AK11: 0.0005842304685 | AM11: =Interpolate($AG11,$S$4:$S$9,AL$5:AL$10) -> 0.002344352376 | AN11: 0.9965809274 | AO11: 0.0005842554122 | AQ11: =Interpolate($AG11,$S$4:$S$9,AP$5:AP$10) -> 0.002344252376 | AR11: 0.9965810022 | AS11: 0.0005842305269 | AU11: =Interpolate($AG11,$S$4:$S$9,AT$5:AT$10) -> 0.002344252376 | AV11: 0.9965810022 | AW11: 0.0005842305269 | AY11: =Interpolate($AG11,$S$4:$S$9,AX$5:AX$10) -> 0.002344252376 | AZ11: 0.9965810022 | BA11: 0.0005842305269 | BC11: =Interpolate($AG11,$S$4:$S$9,BB$5:BB$10) -> 0.002344252376 | BD11: 0.9965810022 | BE11: 0.0005842305269
K12: CDS PVs | S12: CDS Par Spreads | X12: 2 | Y12: =Interpolate(X12,$S$4:$S$9,$T$4:$T$9) -> 0.002344252376 | Z12: 0.9959971139 | AA12: 0.0005838882313 | AB12: 0.9413349545 | AG12: 2 | AI12: =Interpolate($AG12,$S$4:$S$9,AH$5:AH$10) -> 0.002344252376 | AJ12: 0.9959970143 | AK12: 0.0005838881729 | AM12: =Interpolate($AG12,$S$4:$S$9,AL$5:AL$10) -> 0.002344352376 | AN12: 0.9959970143 | AO12: 0.0005839130874 | AQ12: =Interpolate($AG12,$S$4:$S$9,AP$5:AP$10) -> 0.002344252376 | AR12: 0.9959971139 | AS12: 0.0005838882313 | AU12: =Interpolate($AG12,$S$4:$S$9,AT$5:AT$10) -> 0.002344252376 | AV12: 0.9959971139 | AW12: 0.0005838882313 | AY12: =Interpolate($AG12,$S$4:$S$9,AX$5:AX$10) -> 0.002344252376 | AZ12: 0.9959971139 | BA12: 0.0005838882313 | BC12: =Interpolate($AG12,$S$4:$S$9,BB$5:BB$10) -> 0.002344252376 | BD12: 0.9959971139 | BE12: 0.0005838882313
C13: Instructions | K13: Tenor | L13: Credit Spread | M13: Coupon | N13: Premium | O13: Accrued | P13: Protection | Q13: Total PV | S13: Risky Annuity | T13: Par Spread (bps) | U13: Par Spread (%) | V13: +/- | X13: 2.25 | Y13: =Interpolate(X13,$S$4:$S$9,$T$4:$T$9) -> 0.003550659857 | Z13: 0.9951133945 | AA13: 0.0008837194612 | AB13: 0.9342480689 | AG13: 2.25 | AI13: =Interpolate($AG13,$S$4:$S$9,AH$5:AH$10) -> 0.003550659857 | AJ13: 0.995113295 | AK13: 0.0008837193728 | AM13: =Interpolate($AG13,$S$4:$S$9,AL$5:AL$10) -> 0.003550659857 | AN13: 0.995113295 | AO13: 0.0008837193728 | AQ13: =Interpolate($AG13,$S$4:$S$9,AP$5:AP$10) -> 0.003550759857 | AR13: 0.9951133696 | AS13: 0.000883744339 | AU13: =Interpolate($AG13,$S$4:$S$9,AT$5:AT$10) -> 0.003550659857 | AV13: 0.9951133945 | AW13: 0.0008837194612 | AY13: =Interpolate($AG13,$S$4:$S$9,AX$5:AX$10) -> 0.003550659857 | AZ13: 0.9951133945 | BA13: 0.0008837194612 | BC13: =Interpolate($AG13,$S$4:$S$9,BB$5:BB$10) -> 0.003550659857 | BD13: 0.9951133945 | BE13: 0.0008837194612
C14: 1. Specify the CDS Recovery Rate ( 40% for Senior Bonds, 20% for Subordinated Bonds) | K14: 1Y | L14: =Q4 -> 0.001 | M14: =-Notional*L14*YearFraction -> -250 | N14: =M14*SUMPRODUCT(PSurvival1Y,DiscFactors1Y) -> -980.3020831 | O14: =M14*0.5*SUMPRODUCT(PDefault1Y,DiscFactors1Y) -> -0.2042721573 | P14: =LGD*SUMPRODUCT(PDefault1Y,DiscFactors1Y) -> 980.5063553 | Q14: =SUM(N14:P14) -> 5.832134775e-11 | S14: =Notional*YearFraction*(SUMPRODUCT(PSurvival1Y,DiscFactors1Y)+0.5*SUMPRODUCT(PDefault1Y,DiscFactors1Y)) -> 980506.3553 | T14: =P14/S14*10000 -> 10 | U14: =T14/10000 -> 0.001 | V14: =U14-Q4 -> 5.941427905e-17 | X14: 2.5 | Y14: =Interpolate(X14,$S$4:$S$9,$T$4:$T$9) -> 0.003550659857 | Z14: 0.9942304591 | AA14: 0.0008829353624 | AB14: 0.9272145372 | AG14: 2.5 | AI14: =Interpolate($AG14,$S$4:$S$9,AH$5:AH$10) -> 0.003550659857 | AJ14: 0.9942303597 | AK14: 0.0008829352741 | AM14: =Interpolate($AG14,$S$4:$S$9,AL$5:AL$10) -> 0.003550659857 | AN14: 0.9942303597 | AO14: 0.0008829352741 | AQ14: =Interpolate($AG14,$S$4:$S$9,AP$5:AP$10) -> 0.003550759857 | AR14: 0.9942304094 | AS14: 0.0008829601961 | AU14: =Interpolate($AG14,$S$4:$S$9,AT$5:AT$10) -> 0.003550659857 | AV14: 0.9942304591 | AW14: 0.0008829353624 | AY14: =Interpolate($AG14,$S$4:$S$9,AX$5:AX$10) -> 0.003550659857 | AZ14: 0.9942304591 | BA14: 0.0008829353624 | BC14: =Interpolate($AG14,$S$4:$S$9,BB$5:BB$10) -> 0.003550659857 | BD14: 0.9942304591 | BE14: 0.0008829353624
C15: 2. Input the CDS Market Data i.e. Market Par Spreads | K15: 2Y | L15: 0.0012 | M15: -300 | N15: =M15*SUMPRODUCT(PSurvival2Y,DiscFactors2Y) -> -2315.316702 | O15: =M15*0.5*SUMPRODUCT(PDefault2Y,DiscFactors2Y) -> -0.5789739191 | P15: =LGD*SUMPRODUCT(PDefault2Y,DiscFactors2Y) -> 2315.895676 | Q15: -6.684786058e-10 | S15: =Notional*YearFraction*(SUMPRODUCT(PSurvival2Y,DiscFactors2Y)+0.5*SUMPRODUCT(PDefault2Y,DiscFactors2Y)) -> 1929913.064 | T15: 12 | U15: 0.0012 | V15: -3.462941739e-16 | X15: 2.75 | Y15: =Interpolate(X15,$S$4:$S$9,$T$4:$T$9) -> 0.003550659857 | Z15: 0.9933483071 | AA15: 0.0008821519594 | AB15: 0.9202339578 | AG15: 2.75 | AI15: =Interpolate($AG15,$S$4:$S$9,AH$5:AH$10) -> 0.003550659857 | AJ15: 0.9933482078 | AK15: 0.0008821518712 | AM15: =Interpolate($AG15,$S$4:$S$9,AL$5:AL$10) -> 0.003550659857 | AN15: 0.9933482078 | AO15: 0.0008821518712 | AQ15: =Interpolate($AG15,$S$4:$S$9,AP$5:AP$10) -> 0.003550759857 | AR15: 0.9933482326 | AS15: 0.000882176749 | AU15: =Interpolate($AG15,$S$4:$S$9,AT$5:AT$10) -> 0.003550659857 | AV15: 0.9933483071 | AW15: 0.0008821519594 | AY15: =Interpolate($AG15,$S$4:$S$9,AX$5:AX$10) -> 0.003550659857 | AZ15: 0.9933483071 | BA15: 0.0008821519594 | BC15: =Interpolate($AG15,$S$4:$S$9,BB$5:BB$10) -> 0.003550659857 | BD15: 0.9933483071 | BE15: 0.0008821519594
C16: 3. Enter the solver tolerance | K16: 3Y | L16: 0.0015 | M16: -375 | N16: =M16*SUMPRODUCT(PSurvival3Y,DiscFactors3Y) -> -4271.178311 | O16: =M16*0.5*SUMPRODUCT(PDefault3Y,DiscFactors3Y) -> -1.33516046 | P16: =LGD*SUMPRODUCT(PDefault3Y,DiscFactors3Y) -> 4272.513471 | Q16: -2.412407412e-07 | S16: =Notional*YearFraction*(SUMPRODUCT(PSurvival3Y,DiscFactors3Y)+0.5*SUMPRODUCT(PDefault3Y,DiscFactors3Y)) -> 2848342.314 | T16: 15 | U16: 0.0015 | V16: -8.469505479e-14 | X16: 3 | Y16: =Interpolate(X16,$S$4:$S$9,$T$4:$T$9) -> 0.003550659857 | Z16: 0.9924669379 | AA16: 0.0008813692515 | AB16: 0.913305932 | AG16: 3 | AI16: =Interpolate($AG16,$S$4:$S$9,AH$5:AH$10) -> 0.003550659857 | AJ16: 0.9924668386 | AK16: 0.0008813691633 | AM16: =Interpolate($AG16,$S$4:$S$9,AL$5:AL$10) -> 0.003550659857 | AN16: 0.9924668386 | AO16: 0.0008813691633 | AQ16: =Interpolate($AG16,$S$4:$S$9,AP$5:AP$10) -> 0.003550759857 | AR16: 0.9924668386 | AS16: 0.000881393997 | AU16: =Interpolate($AG16,$S$4:$S$9,AT$5:AT$10) -> 0.003550659857 | AV16: 0.9924669379 | AW16: 0.0008813692515 | AY16: =Interpolate($AG16,$S$4:$S$9,AX$5:AX$10) -> 0.003550659857 | AZ16: 0.9924669379 | BA16: 0.0008813692515 | BC16: =Interpolate($AG16,$S$4:$S$9,BB$5:BB$10) -> 0.003550659857 | BD16: 0.9924669379 | BE16: 0.0008813692515
C17: 4. Enter an initial guess for the hazard rate, we use H = S / (1-R), which is a reasonable | K17: 4Y | L17: 0.0017 | M17: -425 | N17: =M17*SUMPRODUCT(PSurvival4Y,DiscFactors4Y) -> -6349.138874 | O17: =M17*0.5*SUMPRODUCT(PDefault4Y,DiscFactors4Y) -> -2.249450031 | P17: =LGD*SUMPRODUCT(PDefault4Y,DiscFactors4Y) -> 6351.388323 | Q17: -1.221588718e-06 | S17: =Notional*YearFraction*(SUMPRODUCT(PSurvival4Y,DiscFactors4Y)+0.5*SUMPRODUCT(PDefault4Y,DiscFactors4Y)) -> 3736110.779 | T17: 17 | U17: 0.0017 | V17: -3.269682702e-13 | X17: 3.25 | Y17: =Interpolate(X17,$S$4:$S$9,$T$4:$T$9) -> 0.00390281006 | Z17: 0.9914990577 | AA17: 0.0009678802289 | AB17: 0.9064300642 | AG17: 3.25 | AI17: =Interpolate($AG17,$S$4:$S$9,AH$5:AH$10) -> 0.00390281006 | AJ17: 0.9914989585 | AK17: 0.0009678801321 | AM17: =Interpolate($AG17,$S$4:$S$9,AL$5:AL$10) -> 0.00390281006 | AN17: 0.9914989585 | AO17: 0.0009678801321 | AQ17: =Interpolate($AG17,$S$4:$S$9,AP$5:AP$10) -> 0.00390281006 | AR17: 0.9914989585 | AS17: 0.0009678801321 | AU17: =Interpolate($AG17,$S$4:$S$9,AT$5:AT$10) -> 0.00390291006 | AV17: 0.9914990329 | AW17: 0.0009679050164 | AY17: =Interpolate($AG17,$S$4:$S$9,AX$5:AX$10) -> 0.00390281006 | AZ17: 0.9914990577 | BA17: 0.0009678802289 | BC17: =Interpolate($AG17,$S$4:$S$9,BB$5:BB$10) -> 0.00390281006 | BD17: 0.9914990577 | BE17: 0.0009678802289
C18: 5. To show each solver iteration, set show iterations to True | K18: 5Y | L18: 0.002433 | M18: -608.25 | N18: =M18*SUMPRODUCT(PSurvival5Y,DiscFactors5Y) -> -11166.0741 | O18: =M18*0.5*SUMPRODUCT(PDefault5Y,DiscFactors5Y) -> -5.662673994 | P18: =LGD*SUMPRODUCT(PDefault5Y,DiscFactors5Y) -> 11171.73661 | Q18: -0.0001613273307 | S18: =Notional*YearFraction*(SUMPRODUCT(PSurvival5Y,DiscFactors5Y)+0.5*SUMPRODUCT(PDefault5Y,DiscFactors5Y)) -> 4591753.708 | T18: 24.32999965 | U18: 0.002432999965 | V18: -3.513414256e-11 | X18: 3.5 | Y18: =Interpolate(X18,$S$4:$S$9,$T$4:$T$9) -> 0.00390281006 | Z18: 0.9905321213 | AA18: 0.0009669363263 | AB18: 0.8996059617 | AG18: 3.5 | AI18: =Interpolate($AG18,$S$4:$S$9,AH$5:AH$10) -> 0.00390281006 | AJ18: 0.9905320223 | AK18: 0.0009669362296 | AM18: =Interpolate($AG18,$S$4:$S$9,AL$5:AL$10) -> 0.00390281006 | AN18: 0.9905320223 | AO18: 0.0009669362296 | AQ18: =Interpolate($AG18,$S$4:$S$9,AP$5:AP$10) -> 0.00390281006 | AR18: 0.9905320223 | AS18: 0.0009669362296 | AU18: =Interpolate($AG18,$S$4:$S$9,AT$5:AT$10) -> 0.00390291006 | AV18: 0.9905320718 | AW18: 0.0009669610654 | AY18: =Interpolate($AG18,$S$4:$S$9,AX$5:AX$10) -> 0.00390281006 | AZ18: 0.9905321213 | BA18: 0.0009669363263 | BC18: =Interpolate($AG18,$S$4:$S$9,BB$5:BB$10) -> 0.00390281006 | BD18: 0.9905321213 | BE18: 0.0009669363263
C19: 6. Press the Run Solver Macro button to run the solver, which is a simple loop in VBA. | K19: 10Y | L19: 0.003 | M19: -750 | N19: =M19*SUMPRODUCT(PSurvival10Y,DiscFactors10Y) -> -25264.11738 | O19: =M19*0.5*SUMPRODUCT(PDefault10Y,DiscFactors10Y) -> -15.79994831 | P19: =LGD*SUMPRODUCT(PDefault10Y,DiscFactors10Y) -> 25279.91729 | Q19: -3.03973211e-05 | S19: =Notional*YearFraction*(SUMPRODUCT(PSurvival10Y,DiscFactors10Y)+0.5*SUMPRODUCT(PDefault10Y,DiscFactors10Y)) -> 8426639.108 | T19: 29.99999996 | U19: 0.002999999996 | V19: -3.607288513e-12 | X19: 3.75 | Y19: =Interpolate(X19,$S$4:$S$9,$T$4:$T$9) -> 0.00390281006 | Z19: 0.989566128 | AA19: 0.0009659933442 | AB19: 0.8928332348 | AG19: 3.75 | AI19: =Interpolate($AG19,$S$4:$S$9,AH$5:AH$10) -> 0.00390281006 | AJ19: 0.989566029 | AK19: 0.0009659932476 | AM19: =Interpolate($AG19,$S$4:$S$9,AL$5:AL$10) -> 0.00390281006 | AN19: 0.989566029 | AO19: 0.0009659932476 | AQ19: =Interpolate($AG19,$S$4:$S$9,AP$5:AP$10) -> 0.00390281006 | AR19: 0.989566029 | AS19: 0.0009659932476 | AU19: =Interpolate($AG19,$S$4:$S$9,AT$5:AT$10) -> 0.00390291006 | AV19: 0.9895660538 | AW19: 0.000966018035 | AY19: =Interpolate($AG19,$S$4:$S$9,AX$5:AX$10) -> 0.00390281006 | AZ19: 0.989566128 | BA19: 0.0009659933442 | BC19: =Interpolate($AG19,$S$4:$S$9,BB$5:BB$10) -> 0.00390281006 | BD19: 0.989566128 | BE19: 0.0009659933442
C20: 7. Optional: For the solver we can choose to use a Numerical or Analytical Risk Jacobian | X20: 4 | Y20: =Interpolate(X20,$S$4:$S$9,$T$4:$T$9) -> 0.00390281006 | Z20: 0.9886010767 | AA20: 0.0009650512817 | AB20: 0.8861114966 | AG20: 4 | AI20: =Interpolate($AG20,$S$4:$S$9,AH$5:AH$10) -> 0.00390281006 | AJ20: 0.9886009778 | AK20: 0.0009650511852 | AM20: =Interpolate($AG20,$S$4:$S$9,AL$5:AL$10) -> 0.00390281006 | AN20: 0.9886009778 | AO20: 0.0009650511852 | AQ20: =Interpolate($AG20,$S$4:$S$9,AP$5:AP$10) -> 0.00390281006 | AR20: 0.9886009778 | AS20: 0.0009650511852 | AU20: =Interpolate($AG20,$S$4:$S$9,AT$5:AT$10) -> 0.00390291006 | AV20: 0.9886009778 | AW20: 0.0009650759244 | AY20: =Interpolate($AG20,$S$4:$S$9,AX$5:AX$10) -> 0.00390281006 | AZ20: 0.9886010767 | BA20: 0.0009650512817 | BC20: =Interpolate($AG20,$S$4:$S$9,BB$5:BB$10) -> 0.00390281006 | BD20: 0.9886010767 | BE20: 0.0009650512817
X21: 4.25 | Y21: =Interpolate(X21,$S$4:$S$9,$T$4:$T$9) -> 0.009389334297 | Z21: 0.9862832217 | AA21: 0.002317855045 | AB21: 0.8794403635 | AG21: 4.25 | AI21: =Interpolate($AG21,$S$4:$S$9,AH$5:AH$10) -> 0.009389334297 | AJ21: 0.986283123 | AK21: 0.002317854813 | AM21: =Interpolate($AG21,$S$4:$S$9,AL$5:AL$10) -> 0.009389334297 | AN21: 0.986283123 | AO21: 0.002317854813 | AQ21: =Interpolate($AG21,$S$4:$S$9,AP$5:AP$10) -> 0.009389334297 | AR21: 0.986283123 | AS21: 0.002317854813 | AU21: =Interpolate($AG21,$S$4:$S$9,AT$5:AT$10) -> 0.009389334297 | AV21: 0.986283123 | AW21: 0.002317854813 | AY21: =Interpolate($AG21,$S$4:$S$9,AX$5:AX$10) -> 0.009389434297 | AZ21: 0.986283197 | BA21: 0.002317879702 | BC21: =Interpolate($AG21,$S$4:$S$9,BB$5:BB$10) -> 0.009389334297 | BD21: 0.9862832217 | BE21: 0.002317855045
K22: Multi-Dimensional Newton-Raphson Solver Algorithm | O22: 3. Tolerance | Q22: RMSE | S22: Chart Data | X22: 4.5 | Y22: =Interpolate(X22,$S$4:$S$9,$T$4:$T$9) -> 0.009389334297 | Z22: 0.983970801 | AA22: 0.002312420647 | AB22: 0.8728194542 | AG22: 4.5 | AI22: =Interpolate($AG22,$S$4:$S$9,AH$5:AH$10) -> 0.009389334297 | AJ22: 0.9839707026 | AK22: 0.002312420416 | AM22: =Interpolate($AG22,$S$4:$S$9,AL$5:AL$10) -> 0.009389334297 | AN22: 0.9839707026 | AO22: 0.002312420416 | AQ22: =Interpolate($AG22,$S$4:$S$9,AP$5:AP$10) -> 0.009389334297 | AR22: 0.9839707026 | AS22: 0.002312420416 | AU22: =Interpolate($AG22,$S$4:$S$9,AT$5:AT$10) -> 0.009389334297 | AV22: 0.9839707026 | AW22: 0.002312420416 | AY22: =Interpolate($AG22,$S$4:$S$9,AX$5:AX$10) -> 0.009389434297 | AZ22: 0.9839707518 | BA22: 0.002312445188 | BC22: =Interpolate($AG22,$S$4:$S$9,BB$5:BB$10) -> 0.009389334297 | BD22: 0.983970801 | BE22: 0.002312420647
K23: Xn+1 = Xn - J-1 f( Xn ) | O23: 1e-06 | Q23: =SQRT(SUMPRODUCT(Q27:Q32,Q27:Q32)) -> 3.178126509e-10 | S23: Time | T23: Hazard Rate | X23: 4.75 | Y23: =Interpolate(X23,$S$4:$S$9,$T$4:$T$9) -> 0.009389334297 | Z23: 0.981663802 | AA23: 0.00230699899 | AB23: 0.8662483908 | AG23: 4.75 | AI23: =Interpolate($AG23,$S$4:$S$9,AH$5:AH$10) -> 0.009389334297 | AJ23: 0.9816637039 | AK23: 0.002306998759 | AM23: =Interpolate($AG23,$S$4:$S$9,AL$5:AL$10) -> 0.009389334297 | AN23: 0.9816637039 | AO23: 0.002306998759 | AQ23: =Interpolate($AG23,$S$4:$S$9,AP$5:AP$10) -> 0.009389334297 | AR23: 0.9816637039 | AS23: 0.002306998759 | AU23: =Interpolate($AG23,$S$4:$S$9,AT$5:AT$10) -> 0.009389334297 | AV23: 0.9816637039 | AW23: 0.002306998759 | AY23: =Interpolate($AG23,$S$4:$S$9,AX$5:AX$10) -> 0.009389434297 | AZ23: 0.9816637284 | BA23: 0.002307023416 | BC23: =Interpolate($AG23,$S$4:$S$9,BB$5:BB$10) -> 0.009389334297 | BD23: 0.981663802 | BE23: 0.00230699899
S24: 0 | T24: =Interpolate(S24,Calibration.Times,Calibration.HazardRates) -> 0.001666666691 | X24: 5 | Y24: =Interpolate(X24,$S$4:$S$9,$T$4:$T$9) -> 0.009389334297 | Z24: 0.979362212 | AA24: 0.002301590045 | AB24: 0.859726798 | AG24: 5 | AI24: =Interpolate($AG24,$S$4:$S$9,AH$5:AH$10) -> 0.009389334297 | AJ24: 0.979362114 | AK24: 0.002301589814 | AM24: =Interpolate($AG24,$S$4:$S$9,AL$5:AL$10) -> 0.009389334297 | AN24: 0.979362114 | AO24: 0.002301589814 | AQ24: =Interpolate($AG24,$S$4:$S$9,AP$5:AP$10) -> 0.009389334297 | AR24: 0.979362114 | AS24: 0.002301589814 | AU24: =Interpolate($AG24,$S$4:$S$9,AT$5:AT$10) -> 0.009389334297 | AV24: 0.979362114 | AW24: 0.002301589814 | AY24: =Interpolate($AG24,$S$4:$S$9,AX$5:AX$10) -> 0.009389434297 | AZ24: 0.979362114 | BA24: 0.002301614356 | BC24: =Interpolate($AG24,$S$4:$S$9,BB$5:BB$10) -> 0.009389334297 | BD24: 0.979362212 | BE24: 0.002301590045
K25: Iteration: 3 | O25: 4. Initial Guess: H = S / ( 1 - R) | S25: 1 | T25: =Interpolate(S25,Calibration.Times,Calibration.HazardRates) -> 0.001666666691 | X25: 5.25 | Y25: =Interpolate(X25,$S$4:$S$9,$T$4:$T$9) -> 0.006131510234 | Z25: 0.9778621196 | AA25: 0.001500092334 | AB25: 0.8532543033 | AG25: 5.25 | AI25: =Interpolate($AG25,$S$4:$S$9,AH$5:AH$10) -> 0.006131510234 | AJ25: 0.9778620219 | AK25: 0.001500092184 | AM25: =Interpolate($AG25,$S$4:$S$9,AL$5:AL$10) -> 0.006131510234 | AN25: 0.9778620219 | AO25: 0.001500092184 | AQ25: =Interpolate($AG25,$S$4:$S$9,AP$5:AP$10) -> 0.006131510234 | AR25: 0.9778620219 | AS25: 0.001500092184 | AU25: =Interpolate($AG25,$S$4:$S$9,AT$5:AT$10) -> 0.006131510234 | AV25: 0.9778620219 | AW25: 0.001500092184 | AY25: =Interpolate($AG25,$S$4:$S$9,AX$5:AX$10) -> 0.006131510234 | AZ25: 0.9778620219 | BA25: 0.001500092184 | BC25: =Interpolate($AG25,$S$4:$S$9,BB$5:BB$10) -> 0.006131610234 | BD25: 0.9778620952 | BE25: 0.00150011678
K26: Tenor | L26: Time, t | M26: Xn+1 | N26: Xn | O26: X0 | P26: f( Xn ) | Q26: Epsilon | S26: =S25+0.01 -> 1.01 | T26: =Interpolate(S26,Calibration.Times,Calibration.HazardRates) -> 0.002344252376 | X26: 5.5 | Y26: =Interpolate(X26,$S$4:$S$9,$T$4:$T$9) -> 0.006131510234 | Z26: 0.976364325 | AA26: 0.001497794637 | AB26: 0.846830537 | AG26: 5.5 | AI26: =Interpolate($AG26,$S$4:$S$9,AH$5:AH$10) -> 0.006131510234 | AJ26: 0.9763642274 | AK26: 0.001497794488 | AM26: =Interpolate($AG26,$S$4:$S$9,AL$5:AL$10) -> 0.006131510234 | AN26: 0.9763642274 | AO26: 0.001497794488 | AQ26: =Interpolate($AG26,$S$4:$S$9,AP$5:AP$10) -> 0.006131510234 | AR26: 0.9763642274 | AS26: 0.001497794488 | AU26: =Interpolate($AG26,$S$4:$S$9,AT$5:AT$10) -> 0.006131510234 | AV26: 0.9763642274 | AW26: 0.001497794488 | AY26: =Interpolate($AG26,$S$4:$S$9,AX$5:AX$10) -> 0.006131510234 | AZ26: 0.9763642274 | BA26: 0.001497794488 | BC26: =Interpolate($AG26,$S$4:$S$9,BB$5:BB$10) -> 0.006131610234 | BD26: 0.9763642762 | BE26: 0.001497819009
K27: 1Y | L27: 1 | M27: =N27:N32-MMULT(K64:P69,P27:P32) -> 0.001666666691 | N27: 0.001666666691 | O27: =Q4/(1-RecoveryRate) -> 0.001666666667 | P27: =V14 -> 5.941427905e-17 | Q27: =M27-N27 -> -9.909607857e-17 | S27: =S5 -> 2 | T27: =Interpolate(S27,Calibration.Times,Calibration.HazardRates) -> 0.002344252376 | X27: 5.75 | Y27: =Interpolate(X27,$S$4:$S$9,$T$4:$T$9) -> 0.006131510234 | Z27: 0.9748688246 | AA27: 0.00149550046 | AB27: 0.8404551325 | AG27: 5.75 | AI27: =Interpolate($AG27,$S$4:$S$9,AH$5:AH$10) -> 0.006131510234 | AJ27: 0.9748687271 | AK27: 0.001495500311 | AM27: =Interpolate($AG27,$S$4:$S$9,AL$5:AL$10) -> 0.006131510234 | AN27: 0.9748687271 | AO27: 0.001495500311 | AQ27: =Interpolate($AG27,$S$4:$S$9,AP$5:AP$10) -> 0.006131510234 | AR27: 0.9748687271 | AS27: 0.001495500311 | AU27: =Interpolate($AG27,$S$4:$S$9,AT$5:AT$10) -> 0.006131510234 | AV27: 0.9748687271 | AW27: 0.001495500311 | AY27: =Interpolate($AG27,$S$4:$S$9,AX$5:AX$10) -> 0.006131510234 | AZ27: 0.9748687271 | BA27: 0.001495500311 | BC27: =Interpolate($AG27,$S$4:$S$9,BB$5:BB$10) -> 0.006131610234 | BD27: 0.9748687514 | BE27: 0.001495524757
K28: 2Y | L28: 2 | M28: 0.002344252376 | N28: 0.002344252376 | O28: 0.002 | P28: -3.462941739e-16 | Q28: 1.275889117e-15 | S28: =S27+0.01 -> 2.01 | T28: =Interpolate(S28,Calibration.Times,Calibration.HazardRates) -> 0.003550659857 | X28: 6 | Y28: =Interpolate(X28,$S$4:$S$9,$T$4:$T$9) -> 0.006131510234 | Z28: 0.9733756148 | AA28: 0.001493209797 | AB28: 0.8341277254 | AG28: 6 | AI28: =Interpolate($AG28,$S$4:$S$9,AH$5:AH$10) -> 0.006131510234 | AJ28: 0.9733755174 | AK28: 0.001493209648 | AM28: =Interpolate($AG28,$S$4:$S$9,AL$5:AL$10) -> 0.006131510234 | AN28: 0.9733755174 | AO28: 0.001493209648 | AQ28: =Interpolate($AG28,$S$4:$S$9,AP$5:AP$10) -> 0.006131510234 | AR28: 0.9733755174 | AS28: 0.001493209648 | AU28: =Interpolate($AG28,$S$4:$S$9,AT$5:AT$10) -> 0.006131510234 | AV28: 0.9733755174 | AW28: 0.001493209648 | AY28: =Interpolate($AG28,$S$4:$S$9,AX$5:AX$10) -> 0.006131510234 | AZ28: 0.9733755174 | BA28: 0.001493209648 | BC28: =Interpolate($AG28,$S$4:$S$9,BB$5:BB$10) -> 0.006131610234 | BD28: 0.9733755174 | BE28: 0.00149323402
K29: 3Y | L29: 3 | M29: 0.003550659858 | N29: 0.003550659857 | O29: 0.0025 | P29: -8.469505479e-14 | Q29: 4.367938303e-13 | S29: =S6 -> 3 | T29: =Interpolate(S29,Calibration.Times,Calibration.HazardRates) -> 0.003550659857 | X29: 6.25 | Y29: =Interpolate(X29,$S$4:$S$9,$T$4:$T$9) -> 0.006131510234 | Z29: 0.9718846921 | AA29: 0.001490922643 | AB29: 0.8278479546 | AG29: 6.25 | AI29: =Interpolate($AG29,$S$4:$S$9,AH$5:AH$10) -> 0.006131510234 | AJ29: 0.9718845949 | AK29: 0.001490922494 | AM29: =Interpolate($AG29,$S$4:$S$9,AL$5:AL$10) -> 0.006131510234 | AN29: 0.9718845949 | AO29: 0.001490922494 | AQ29: =Interpolate($AG29,$S$4:$S$9,AP$5:AP$10) -> 0.006131510234 | AR29: 0.9718845949 | AS29: 0.001490922494 | AU29: =Interpolate($AG29,$S$4:$S$9,AT$5:AT$10) -> 0.006131510234 | AV29: 0.9718845949 | AW29: 0.001490922494 | AY29: =Interpolate($AG29,$S$4:$S$9,AX$5:AX$10) -> 0.006131510234 | AZ29: 0.9718845949 | BA29: 0.001490922494 | BC29: =Interpolate($AG29,$S$4:$S$9,BB$5:BB$10) -> 0.006131610234 | BD29: 0.9718845706 | BE29: 0.001490946791
K30: 4Y | L30: 4 | M30: 0.003902810062 | N30: 0.00390281006 | O30: 0.002833333333 | P30: -3.269682702e-13 | Q30: 1.841847421e-12 | S30: =S29+0.01 -> 3.01 | T30: =Interpolate(S30,Calibration.Times,Calibration.HazardRates) -> 0.00390281006 | X30: 6.5 | Y30: =Interpolate(X30,$S$4:$S$9,$T$4:$T$9) -> 0.006131510234 | Z30: 0.9703960531 | AA30: 0.001488638992 | AB30: 0.8216154613 | AG30: 6.5 | AI30: =Interpolate($AG30,$S$4:$S$9,AH$5:AH$10) -> 0.006131510234 | AJ30: 0.9703959561 | AK30: 0.001488638843 | AM30: =Interpolate($AG30,$S$4:$S$9,AL$5:AL$10) -> 0.006131510234 | AN30: 0.9703959561 | AO30: 0.001488638843 | AQ30: =Interpolate($AG30,$S$4:$S$9,AP$5:AP$10) -> 0.006131510234 | AR30: 0.9703959561 | AS30: 0.001488638843 | AU30: =Interpolate($AG30,$S$4:$S$9,AT$5:AT$10) -> 0.006131510234 | AV30: 0.9703959561 | AW30: 0.001488638843 | AY30: =Interpolate($AG30,$S$4:$S$9,AX$5:AX$10) -> 0.006131510234 | AZ30: 0.9703959561 | BA30: 0.001488638843 | BC30: =Interpolate($AG30,$S$4:$S$9,BB$5:BB$10) -> 0.006131610234 | BD30: 0.9703959076 | BE30: 0.001488663066
K31: 5Y | L31: 5 | M31: 0.00938933461 | N31: 0.009389334297 | O31: 0.004055 | P31: -3.513414256e-11 | Q31: 3.127016701e-10 | S31: =S7 -> 4 | T31: =Interpolate(S31,Calibration.Times,Calibration.HazardRates) -> 0.00390281006 | X31: 6.75 | Y31: =Interpolate(X31,$S$4:$S$9,$T$4:$T$9) -> 0.006131510234 | Z31: 0.9689096943 | AA31: 0.001486358839 | AB31: 0.8154298896 | AG31: 6.75 | AI31: =Interpolate($AG31,$S$4:$S$9,AH$5:AH$10) -> 0.006131510234 | AJ31: 0.9689095974 | AK31: 0.00148635869 | AM31: =Interpolate($AG31,$S$4:$S$9,AL$5:AL$10) -> 0.006131510234 | AN31: 0.9689095974 | AO31: 0.00148635869 | AQ31: =Interpolate($AG31,$S$4:$S$9,AP$5:AP$10) -> 0.006131510234 | AR31: 0.9689095974 | AS31: 0.00148635869 | AU31: =Interpolate($AG31,$S$4:$S$9,AT$5:AT$10) -> 0.006131510234 | AV31: 0.9689095974 | AW31: 0.00148635869 | AY31: =Interpolate($AG31,$S$4:$S$9,AX$5:AX$10) -> 0.006131510234 | AZ31: 0.9689095974 | BA31: 0.00148635869 | BC31: =Interpolate($AG31,$S$4:$S$9,BB$5:BB$10) -> 0.006131610234 | BD31: 0.9689095247 | BE31: 0.001486382838
K32: 10Y | L32: 10 | M32: 0.006131510177 | N32: 0.006131510234 | O32: 0.005 | P32: -3.607288513e-12 | Q32: -5.673590937e-11 | S32: =S31+0.01 -> 4.01 | T32: =Interpolate(S32,Calibration.Times,Calibration.HazardRates) -> 0.009389334297 | X32: 7 | Y32: =Interpolate(X32,$S$4:$S$9,$T$4:$T$9) -> 0.006131510234 | Z32: 0.9674256121 | AA32: 0.001484082178 | AB32: 0.8092908863 | AG32: 7 | AI32: =Interpolate($AG32,$S$4:$S$9,AH$5:AH$10) -> 0.006131510234 | AJ32: 0.9674255154 | AK32: 0.001484082029 | AM32: =Interpolate($AG32,$S$4:$S$9,AL$5:AL$10) -> 0.006131510234 | AN32: 0.9674255154 | AO32: 0.001484082029 | AQ32: =Interpolate($AG32,$S$4:$S$9,AP$5:AP$10) -> 0.006131510234 | AR32: 0.9674255154 | AS32: 0.001484082029 | AU32: =Interpolate($AG32,$S$4:$S$9,AT$5:AT$10) -> 0.006131510234 | AV32: 0.9674255154 | AW32: 0.001484082029 | AY32: =Interpolate($AG32,$S$4:$S$9,AX$5:AX$10) -> 0.006131510234 | AZ32: 0.9674255154 | BA32: 0.001484082029 | BC32: =Interpolate($AG32,$S$4:$S$9,BB$5:BB$10) -> 0.006131610234 | BD32: 0.9674254186 | BE32: 0.001484106104
S33: =S8 -> 5 | T33: =Interpolate(S33,Calibration.Times,Calibration.HazardRates) -> 0.009389334297 | X33: 7.25 | Y33: =Interpolate(X33,$S$4:$S$9,$T$4:$T$9) -> 0.006131510234 | Z33: 0.9659438031 | AA33: 0.001481809004 | AB33: 0.8031981008 | AG33: 7.25 | AI33: =Interpolate($AG33,$S$4:$S$9,AH$5:AH$10) -> 0.006131510234 | AJ33: 0.9659437065 | AK33: 0.001481808856 | AM33: =Interpolate($AG33,$S$4:$S$9,AL$5:AL$10) -> 0.006131510234 | AN33: 0.9659437065 | AO33: 0.001481808856 | AQ33: =Interpolate($AG33,$S$4:$S$9,AP$5:AP$10) -> 0.006131510234 | AR33: 0.9659437065 | AS33: 0.001481808856 | AU33: =Interpolate($AG33,$S$4:$S$9,AT$5:AT$10) -> 0.006131510234 | AV33: 0.9659437065 | AW33: 0.001481808856 | AY33: =Interpolate($AG33,$S$4:$S$9,AX$5:AX$10) -> 0.006131510234 | AZ33: 0.9659437065 | BA33: 0.001481808856 | BC33: =Interpolate($AG33,$S$4:$S$9,BB$5:BB$10) -> 0.006131610234 | BD33: 0.9659435858 | BE33: 0.001481832856
S34: =S33+0.01 -> 5.01 | T34: =Interpolate(S34,Calibration.Times,Calibration.HazardRates) -> 0.006131510234 | X34: 7.5 | Y34: =Interpolate(X34,$S$4:$S$9,$T$4:$T$9) -> 0.006131510234 | Z34: 0.9644642638 | AA34: 0.001479539313 | AB34: 0.7971511851 | AG34: 7.5 | AI34: =Interpolate($AG34,$S$4:$S$9,AH$5:AH$10) -> 0.006131510234 | AJ34: 0.9644641673 | AK34: 0.001479539165 | AM34: =Interpolate($AG34,$S$4:$S$9,AL$5:AL$10) -> 0.006131510234 | AN34: 0.9644641673 | AO34: 0.001479539165 | AQ34: =Interpolate($AG34,$S$4:$S$9,AP$5:AP$10) -> 0.006131510234 | AR34: 0.9644641673 | AS34: 0.001479539165 | AU34: =Interpolate($AG34,$S$4:$S$9,AT$5:AT$10) -> 0.006131510234 | AV34: 0.9644641673 | AW34: 0.001479539165 | AY34: =Interpolate($AG34,$S$4:$S$9,AX$5:AX$10) -> 0.006131510234 | AZ34: 0.9644641673 | BA34: 0.001479539165 | BC34: =Interpolate($AG34,$S$4:$S$9,BB$5:BB$10) -> 0.006131610234 | BD34: 0.9644640227 | BE34: 0.001479563091
S35: =S9 -> 10 | T35: =Interpolate(S35,Calibration.Times,Calibration.HazardRates) -> 0.006131510234 | X35: 7.75 | Y35: =Interpolate(X35,$S$4:$S$9,$T$4:$T$9) -> 0.006131510234 | Z35: 0.9629869907 | AA35: 0.001477273097 | AB35: 0.7911497939 | AG35: 7.75 | AI35: =Interpolate($AG35,$S$4:$S$9,AH$5:AH$10) -> 0.006131510234 | AJ35: 0.9629868944 | AK35: 0.00147727295 | AM35: =Interpolate($AG35,$S$4:$S$9,AL$5:AL$10) -> 0.006131510234 | AN35: 0.9629868944 | AO35: 0.00147727295 | AQ35: =Interpolate($AG35,$S$4:$S$9,AP$5:AP$10) -> 0.006131510234 | AR35: 0.9629868944 | AS35: 0.00147727295 | AU35: =Interpolate($AG35,$S$4:$S$9,AT$5:AT$10) -> 0.006131510234 | AV35: 0.9629868944 | AW35: 0.00147727295 | AY35: =Interpolate($AG35,$S$4:$S$9,AX$5:AX$10) -> 0.006131510234 | AZ35: 0.9629868944 | BA35: 0.00147727295 | BC35: =Interpolate($AG35,$S$4:$S$9,BB$5:BB$10) -> 0.006131610234 | BD35: 0.9629867259 | BE35: 0.001477296803
O36: 5. Show Iterations | X36: 8 | Y36: =Interpolate(X36,$S$4:$S$9,$T$4:$T$9) -> 0.006131510234 | Z36: 0.9615119803 | AA36: 0.001475010353 | AB36: 0.7851935845 | AG36: 8 | AI36: =Interpolate($AG36,$S$4:$S$9,AH$5:AH$10) -> 0.006131510234 | AJ36: 0.9615118842 | AK36: 0.001475010206 | AM36: =Interpolate($AG36,$S$4:$S$9,AL$5:AL$10) -> 0.006131510234 | AN36: 0.9615118842 | AO36: 0.001475010206 | AQ36: =Interpolate($AG36,$S$4:$S$9,AP$5:AP$10) -> 0.006131510234 | AR36: 0.9615118842 | AS36: 0.001475010206 | AU36: =Interpolate($AG36,$S$4:$S$9,AT$5:AT$10) -> 0.006131510234 | AV36: 0.9615118842 | AW36: 0.001475010206 | AY36: =Interpolate($AG36,$S$4:$S$9,AX$5:AX$10) -> 0.006131510234 | AZ36: 0.9615118842 | BA36: 0.001475010206 | BC36: =Interpolate($AG36,$S$4:$S$9,BB$5:BB$10) -> 0.006131610234 | BD36: 0.9615116919 | BE36: 0.001475033985
O37: FALSE | X37: 8.25 | Y37: =Interpolate(X37,$S$4:$S$9,$T$4:$T$9) -> 0.006131510234 | Z37: 0.9600392293 | AA37: 0.001472751075 | AB37: 0.7792822167 | AG37: 8.25 | AI37: =Interpolate($AG37,$S$4:$S$9,AH$5:AH$10) -> 0.006131510234 | AJ37: 0.9600391333 | AK37: 0.001472750928 | AM37: =Interpolate($AG37,$S$4:$S$9,AL$5:AL$10) -> 0.006131510234 | AN37: 0.9600391333 | AO37: 0.001472750928 | AQ37: =Interpolate($AG37,$S$4:$S$9,AP$5:AP$10) -> 0.006131510234 | AR37: 0.9600391333 | AS37: 0.001472750928 | AU37: =Interpolate($AG37,$S$4:$S$9,AT$5:AT$10) -> 0.006131510234 | AV37: 0.9600391333 | AW37: 0.001472750928 | AY37: =Interpolate($AG37,$S$4:$S$9,AX$5:AX$10) -> 0.006131510234 | AZ37: 0.9600391333 | BA37: 0.001472750928 | BC37: =Interpolate($AG37,$S$4:$S$9,BB$5:BB$10) -> 0.006131610234 | BD37: 0.9600389172 | BE37: 0.001472774634
X38: 8.5 | Y38: =Interpolate(X38,$S$4:$S$9,$T$4:$T$9) -> 0.006131510234 | Z38: 0.958568734 | AA38: 0.001470495257 | AB38: 0.7734153529 | AG38: 8.5 | AI38: =Interpolate($AG38,$S$4:$S$9,AH$5:AH$10) -> 0.006131510234 | AJ38: 0.9585686381 | AK38: 0.00147049511 | AM38: =Interpolate($AG38,$S$4:$S$9,AL$5:AL$10) -> 0.006131510234 | AN38: 0.9585686381 | AO38: 0.00147049511 | AQ38: =Interpolate($AG38,$S$4:$S$9,AP$5:AP$10) -> 0.006131510234 | AR38: 0.9585686381 | AS38: 0.00147049511 | AU38: =Interpolate($AG38,$S$4:$S$9,AT$5:AT$10) -> 0.006131510234 | AV38: 0.9585686381 | AW38: 0.00147049511 | AY38: =Interpolate($AG38,$S$4:$S$9,AX$5:AX$10) -> 0.006131510234 | AZ38: 0.9585686381 | BA38: 0.00147049511 | BC38: =Interpolate($AG38,$S$4:$S$9,BB$5:BB$10) -> 0.006131610234 | BD38: 0.9585683985 | BE38: 0.001470518744
X39: 8.75 | Y39: =Interpolate(X39,$S$4:$S$9,$T$4:$T$9) -> 0.006131510234 | Z39: 0.9571004911 | AA39: 0.001468242895 | AB39: 0.767592658 | AG39: 8.75 | AI39: =Interpolate($AG39,$S$4:$S$9,AH$5:AH$10) -> 0.006131510234 | AJ39: 0.9571003954 | AK39: 0.001468242748 | AM39: =Interpolate($AG39,$S$4:$S$9,AL$5:AL$10) -> 0.006131510234 | AN39: 0.9571003954 | AO39: 0.001468242748 | AQ39: =Interpolate($AG39,$S$4:$S$9,AP$5:AP$10) -> 0.006131510234 | AR39: 0.9571003954 | AS39: 0.001468242748 | AU39: =Interpolate($AG39,$S$4:$S$9,AT$5:AT$10) -> 0.006131510234 | AV39: 0.9571003954 | AW39: 0.001468242748 | AY39: =Interpolate($AG39,$S$4:$S$9,AX$5:AX$10) -> 0.006131510234 | AZ39: 0.9571003954 | BA39: 0.001468242748 | BC39: =Interpolate($AG39,$S$4:$S$9,BB$5:BB$10) -> 0.006131610234 | BD39: 0.9571001322 | BE39: 0.001468266308
K40: Solver Iteration Results | X40: 9 | Y40: =Interpolate(X40,$S$4:$S$9,$T$4:$T$9) -> 0.006131510234 | Z40: 0.9556344971 | AA40: 0.001465993982 | AB40: 0.7618137997 | AG40: 9 | AI40: =Interpolate($AG40,$S$4:$S$9,AH$5:AH$10) -> 0.006131510234 | AJ40: 0.9556344016 | AK40: 0.001465993836 | AM40: =Interpolate($AG40,$S$4:$S$9,AL$5:AL$10) -> 0.006131510234 | AN40: 0.9556344016 | AO40: 0.001465993836 | AQ40: =Interpolate($AG40,$S$4:$S$9,AP$5:AP$10) -> 0.006131510234 | AR40: 0.9556344016 | AS40: 0.001465993836 | AU40: =Interpolate($AG40,$S$4:$S$9,AT$5:AT$10) -> 0.006131510234 | AV40: 0.9556344016 | AW40: 0.001465993836 | AY40: =Interpolate($AG40,$S$4:$S$9,AX$5:AX$10) -> 0.006131510234 | AZ40: 0.9556344016 | BA40: 0.001465993836 | BC40: =Interpolate($AG40,$S$4:$S$9,BB$5:BB$10) -> 0.006131610234 | BD40: 0.9556341149 | BE40: 0.001466017323
J41: Term | K41: X0 | L41: X1 | M41: X2 | N41: X3 | O41: X4 | P41: X5 | Q41: X6 | R41: X7 | S41: X8 | T41: X9 | U41: X10 | X41: 9.25 | Y41: =Interpolate(X41,$S$4:$S$9,$T$4:$T$9) -> 0.006131510234 | Z41: 0.9541707486 | AA41: 0.001463748515 | AB41: 0.7560784477 | AG41: 9.25 | AI41: =Interpolate($AG41,$S$4:$S$9,AH$5:AH$10) -> 0.006131510234 | AJ41: 0.9541706532 | AK41: 0.001463748368 | AM41: =Interpolate($AG41,$S$4:$S$9,AL$5:AL$10) -> 0.006131510234 | AN41: 0.9541706532 | AO41: 0.001463748368 | AQ41: =Interpolate($AG41,$S$4:$S$9,AP$5:AP$10) -> 0.006131510234 | AR41: 0.9541706532 | AS41: 0.001463748368 | AU41: =Interpolate($AG41,$S$4:$S$9,AT$5:AT$10) -> 0.006131510234 | AV41: 0.9541706532 | AW41: 0.001463748368 | AY41: =Interpolate($AG41,$S$4:$S$9,AX$5:AX$10) -> 0.006131510234 | AZ41: 0.9541706532 | BA41: 0.001463748368 | BC41: =Interpolate($AG41,$S$4:$S$9,BB$5:BB$10) -> 0.006131610234 | BD41: 0.9541703431 | BE41: 0.001463771783
J42: 1Y | K42: 0.00125 | L42: 0.001666666687 | M42: 0.001666666691 | N42: 0.001666666691 | X42: 9.5 | Y42: =Interpolate(X42,$S$4:$S$9,$T$4:$T$9) -> 0.006131510234 | Z42: 0.9527092421 | AA42: 0.001461506486 | AB42: 0.7503862746 | AG42: 9.5 | AI42: =Interpolate($AG42,$S$4:$S$9,AH$5:AH$10) -> 0.006131510234 | AJ42: 0.9527091469 | AK42: 0.00146150634 | AM42: =Interpolate($AG42,$S$4:$S$9,AL$5:AL$10) -> 0.006131510234 | AN42: 0.9527091469 | AO42: 0.00146150634 | AQ42: =Interpolate($AG42,$S$4:$S$9,AP$5:AP$10) -> 0.006131510234 | AR42: 0.9527091469 | AS42: 0.00146150634 | AU42: =Interpolate($AG42,$S$4:$S$9,AT$5:AT$10) -> 0.006131510234 | AV42: 0.9527091469 | AW42: 0.00146150634 | AY42: =Interpolate($AG42,$S$4:$S$9,AX$5:AX$10) -> 0.006131510234 | AZ42: 0.9527091469 | BA42: 0.00146150634 | BC42: =Interpolate($AG42,$S$4:$S$9,BB$5:BB$10) -> 0.006131610234 | BD42: 0.9527088134 | BE42: 0.001461529683
J43: 2Y | K43: 0.0015 | L43: 0.002344115685 | M43: 0.002344252376 | N43: 0.002344252376 | X43: 9.75 | Y43: =Interpolate(X43,$S$4:$S$9,$T$4:$T$9) -> 0.006131510234 | Z43: 0.9512499742 | AA43: 0.001459267892 | AB43: 0.7447369553 | AG43: 9.75 | AI43: =Interpolate($AG43,$S$4:$S$9,AH$5:AH$10) -> 0.006131510234 | AJ43: 0.9512498791 | AK43: 0.001459267746 | AM43: =Interpolate($AG43,$S$4:$S$9,AL$5:AL$10) -> 0.006131510234 | AN43: 0.9512498791 | AO43: 0.001459267746 | AQ43: =Interpolate($AG43,$S$4:$S$9,AP$5:AP$10) -> 0.006131510234 | AR43: 0.9512498791 | AS43: 0.001459267746 | AU43: =Interpolate($AG43,$S$4:$S$9,AT$5:AT$10) -> 0.006131510234 | AV43: 0.9512498791 | AW43: 0.001459267746 | AY43: =Interpolate($AG43,$S$4:$S$9,AX$5:AX$10) -> 0.006131510234 | AZ43: 0.9512498791 | BA43: 0.001459267746 | BC43: =Interpolate($AG43,$S$4:$S$9,BB$5:BB$10) -> 0.006131610234 | BD43: 0.9512495224 | BE43: 0.001459291016
J44: 3Y | K44: 0.001875 | L44: 0.003549539792 | M44: 0.003550659857 | N44: 0.003550659858 | X44: 10 | Y44: =Interpolate(X44,$S$4:$S$9,$T$4:$T$9) -> 0.006131510234 | Z44: 0.9497929415 | AA44: 0.001457032726 | AB44: 0.7391301672 | AG44: 10 | AI44: =Interpolate($AG44,$S$4:$S$9,AH$5:AH$10) -> 0.006131510234 | AJ44: 0.9497928465 | AK44: 0.001457032581 | AM44: =Interpolate($AG44,$S$4:$S$9,AL$5:AL$10) -> 0.006131510234 | AN44: 0.9497928465 | AO44: 0.001457032581 | AQ44: =Interpolate($AG44,$S$4:$S$9,AP$5:AP$10) -> 0.006131510234 | AR44: 0.9497928465 | AS44: 0.001457032581 | AU44: =Interpolate($AG44,$S$4:$S$9,AT$5:AT$10) -> 0.006131510234 | AV44: 0.9497928465 | AW44: 0.001457032581 | AY44: =Interpolate($AG44,$S$4:$S$9,AX$5:AX$10) -> 0.006131510234 | AZ44: 0.9497928465 | BA44: 0.001457032581 | BC44: =Interpolate($AG44,$S$4:$S$9,BB$5:BB$10) -> 0.006131610234 | BD44: 0.9497924666 | BE44: 0.001457055779
J45: 4Y | K45: 0.002125 | L45: 0.003901080289 | M45: 0.00390281006 | N45: 0.003902810062
J46: 5Y | K46: 0.00304125 | L46: 0.009363314469 | M46: 0.009389334297 | N46: 0.00938933461
J47: 10Y | K47: 0.00375 | L47: 0.00612953751 | M47: 0.006131510234 | N47: 0.006131510177 | AH47: Shift Size
AH48: 1e-07
K50: Jacobian, dP/dH | Y50: Analytical Jacobian, dP/dH | AH50: Numerical Jacobian, dP/dH
K51: NUMERICAL | L51: <--- Can be computed numerically or analytically
J52: dP/dH | K52: dH1Y | L52: dH2Y | M52: dH3Y | N52: dH4Y | O52: dH5Y | P52: dH10Y | X52: dP/dH | Y52: dH1Y | Z52: dH2Y | AA52: dH3Y | AB52: dH4Y | AC52: dH5Y | AD52: dH10Y | AG52: dP/dH | AH52: dH1Y | AI52: dH2Y | AJ52: dH3Y | AK52: dH4Y | AL52: dH5Y | AM52: dH10Y
J53: dP1Y | K53: =IF($K$51="ANALYTICAL",Y53,AH53) -> 0.5999999734 | L53: 0 | M53: 0 | N53: 0 | O53: 0 | P53: 0 | X53: dP1Y | Y53: =(Y64*RiskyAnnuity1Y-Protection1Y*Y75)/RiskyAnnuity1Y^2*Notional -> 0.599999974 | Z53: 0 | AA53: 0 | AB53: 0 | AC53: 0 | AD53: 0 | AG53: dP1Y | AH53: =(AH64-$U14)/ShiftSize -> 0.5999999734 | AI53: 0 | AJ53: 0 | AK53: 0 | AL53: 0 | AM53: 0
J54: dP2Y | K54: 0.3047832924 | L54: 0.2951150635 | M54: 0 | N54: 0 | O54: 0 | P54: 0 | X54: dP2Y | Y54: =(Y65*RiskyAnnuity2Y-Protection2Y*Y76)/RiskyAnnuity2Y^2*Notional -> 0.3052643877 | Z54: =(Z65*RiskyAnnuity2Y-Protection2Y*Z76)/RiskyAnnuity2Y^2*Notional -> 0.2951529172 | AA54: 0 | AB54: 0 | AC54: 0 | AD54: 0 | AG54: dP2Y | AH54: 0.3047832924 | AI54: =(AI65-$U15)/ShiftSize -> 0.2951150635 | AJ54: 0 | AK54: 0 | AL54: 0 | AM54: 0
J55: dP3Y | K55: 0.20645603 | L55: 0.1998036295 | M55: 0.1933649245 | N55: 0 | O55: 0 | P55: 0 | X55: dP3Y | Y55: =(Y66*RiskyAnnuity3Y-Protection3Y*Y77)/RiskyAnnuity3Y^2*Notional -> 0.2082423155 | Z55: =(Z66*RiskyAnnuity3Y-Protection3Y*Z77)/RiskyAnnuity3Y^2*Notional -> 0.2003072236 | AA55: =(AA66*RiskyAnnuity3Y-Protection3Y*AA77)/RiskyAnnuity3Y^2*Notional -> 0.1934406197 | AB55: 0 | AC55: 0 | AD55: 0 | AG55: dP3Y | AH55: 0.20645603 | AI55: =(AI66-$U16)/ShiftSize -> 0.1998036295 | AJ55: =(AJ66-$U16)/ShiftSize -> 0.1933649245 | AK55: 0 | AL55: 0 | AM55: 0
J56: dP4Y | K56: 0.1573719139 | L56: 0.1522485923 | M56: 0.1472898474 | N56: 0.1424951459 | O56: 0 | P56: 0 | X56: dP4Y | Y56: =(Y67*RiskyAnnuity4Y-Protection4Y*Y78)/RiskyAnnuity4Y^2*Notional -> 0.1608890661 | Z56: =(Z67*RiskyAnnuity4Y-Protection4Y*Z78)/RiskyAnnuity4Y^2*Notional -> 0.1538527087 | AA56: =(AA67*RiskyAnnuity4Y-Protection4Y*AA78)/RiskyAnnuity4Y^2*Notional -> 0.147746563 | AB56: =(AB67*RiskyAnnuity4Y-Protection4Y*AB78)/RiskyAnnuity4Y^2*Notional -> 0.1425519236 | AC56: 0 | AD56: 0 | AG56: dP4Y | AH56: 0.1573719139 | AI56: =(AI67-$U17)/ShiftSize -> 0.1522485923 | AJ56: =(AJ67-$U17)/ShiftSize -> 0.1472898474 | AK56: =(AK67-$U17)/ShiftSize -> 0.1424951459 | AL56: 0 | AM56: 0
J57: dP5Y | K57: 0.1279680439 | L57: 0.123645383 | M57: 0.1194615791 | N57: 0.1154161822 | O57: 0.1115096006 | P57: 0 | X57: dP5Y | Y57: =(Y68*RiskyAnnuity5Y-Protection5Y*Y79)/RiskyAnnuity5Y^2*Notional -> 0.1352577046 | Z57: =(Z68*RiskyAnnuity5Y-Protection5Y*Z79)/RiskyAnnuity5Y^2*Notional -> 0.1278331389 | AA57: =(AA68*RiskyAnnuity5Y-Protection5Y*AA79)/RiskyAnnuity5Y^2*Notional -> 0.1214895828 | AB57: =(AB68*RiskyAnnuity5Y-Protection5Y*AB79)/RiskyAnnuity5Y^2*Notional -> 0.1161969392 | AC57: =(AC68*RiskyAnnuity5Y-Protection5Y*AC79)/RiskyAnnuity5Y^2*Notional -> 0.1117314132 | AD57: 0 | AG57: dP5Y | AH57: 0.1279680439 | AI57: =(AI68-$U18)/ShiftSize -> 0.123645383 | AJ57: =(AJ68-$U18)/ShiftSize -> 0.1194615791 | AK57: =(AK68-$U18)/ShiftSize -> 0.1154161822 | AL57: =(AL68-$U18)/ShiftSize -> 0.1115096006 | AM57: 0
J58: dP10Y | K58: 0.0696978193 | L58: 0.06727743459 | M58: 0.06493479979 | N58: 0.06266966323 | O58: 0.06048225335 | P58: 0.2723051991 | X58: dP10Y | Y58: =(Y69*RiskyAnnuity10Y-Protection10Y*Y80)/RiskyAnnuity10Y^2*Notional -> 0.09295232241 | Z58: 0.08542621059 | AA58: 0.0786738501 | AB58: 0.07267222703 | AC58: 0.06729584493 | AD58: 0.2730156908 | AG58: dP10Y | AH58: 0.0696978193 | AI58: =(AI69-$U19)/ShiftSize -> 0.06727743459 | AJ58: =(AJ69-$U19)/ShiftSize -> 0.06493479979 | AK58: =(AK69-$U19)/ShiftSize -> 0.06266966323 | AL58: =(AL69-$U19)/ShiftSize -> 0.06048225335 | AM58: =(AM69-$U19)/ShiftSize -> 0.2723051991
K61: Inverse Jacobian, dH/dP | Y61: dProtection/dH | AH61: Shifted Par Rate %
J63: dH/dP | K63: dP1Y | L63: dP2Y | M63: dP3Y | N63: dP4Y | O63: dP5Y | P63: dP10Y | X63: dPROT/dH | Y63: dH1Y | Z63: dH2Y | AA63: dH3Y | AB63: dH4Y | AC63: dH5Y | AD63: dH10Y | AG63: Par Rate | AH63: dH1Y | AI63: dH2Y | AJ63: dH3Y | AK63: dH4Y | AL63: dH5Y | AM63: dH10Y
J64: dH1Y | K64: =MINVERSE(K53:P58) -> 1.666666741 | L64: 0 | M64: 0 | N64: 0 | O64: 0 | P64: 0 | X64: dPROT1Y | Y64: =(1-RecoveryRate)*YearFraction*(SUMPRODUCT($Z$5:$Z$8,$AB$5:$AB$8)) -> 0.5881812499 | Z64: 0 | AA64: 0 | AB64: 0 | AC64: 0 | AD64: 0 | AG64: ParRate1Y | AH64: =AH75/AH86 -> 0.00100006 | AI64: 0 | AJ64: 0 | AK64: 0 | AL64: 0 | AM64: 0
J65: dH2Y | K65: -1.721268208 | L65: 3.388508835 | M65: 0 | N65: 0 | O65: 0 | P65: 0 | X65: dPROT2Y | Y65: =(1-RecoveryRate)*YearFraction*(SUMPRODUCT($Z$5:$Z$8,$AB$5:$AB$8)-SUMPRODUCT($AA$9:$AA$12,$AB$9:$AB$12)) -> 0.5878474025 | Z65: =(1-RecoveryRate)*YearFraction*(SUMPRODUCT($Z$9:$Z$12,$AB$9:$AB$12)) -> 0.5694771013 | AA65: 0 | AB65: 0 | AC65: 0 | AD65: 0 | AG65: ParRate2Y | AH65: 0.001200030478 | AI65: 0.001200029512 | AJ65: 0 | AK65: 0 | AL65: 0 | AM65: 0
J66: dH3Y | K66: -0.0009193148427 | L66: -3.501340099 | M66: 5.171568745 | N66: 0 | O66: 0 | P66: 0 | X66: dPROT3Y | Y66: =(1-RecoveryRate)*YearFraction*(SUMPRODUCT($Z$5:$Z$8,$AB$5:$AB$8)-SUMPRODUCT($AA$9:$AA$16,$AB$9:$AB$16)) -> 0.5873582481 | Z66: =(1-RecoveryRate)*YearFraction*(SUMPRODUCT($Z$9:$Z$12,$AB$9:$AB$12)-SUMPRODUCT($AA$13:$AA$16,$AB$13:$AB$16)) -> 0.5689879468 | AA66: =(1-RecoveryRate)*YearFraction*(SUMPRODUCT($Z$13:$Z$16,$AB$13:$AB$16)) -> 0.5508129732 | AB66: 0 | AC66: 0 | AD66: 0 | AG66: ParRate3Y | AH66: 0.001500020646 | AI66: 0.00150001998 | AJ66: =AJ77/AJ88 -> 0.001500019336 | AK66: 0 | AL66: 0 | AM66: 0
J67: dH4Y | K67: -0.0006348803823 | L67: -0.001290228041 | M67: -5.345582594 | N67: 7.017782915 | O67: 0 | P67: 0 | X67: dPROT4Y | Y67: =(1-RecoveryRate)*YearFraction*(SUMPRODUCT($Z$5:$Z$8,$AB$5:$AB$8)-SUMPRODUCT($AA$9:$AA$20,$AB$9:$AB$20)) -> 0.5868385294 | Z67: =(1-RecoveryRate)*YearFraction*(SUMPRODUCT($Z$9:$Z$12,$AB$9:$AB$12)-SUMPRODUCT($AA$13:$AA$20,$AB$13:$AB$20)) -> 0.5684682281 | AA67: =(1-RecoveryRate)*YearFraction*(SUMPRODUCT($Z$13:$Z$16,$AB$13:$AB$16)-SUMPRODUCT($AA$17:$AA$20,$AB$17:$AB$20)) -> 0.5502932545 | AB67: =(1-RecoveryRate)*YearFraction*(SUMPRODUCT($Z$17:$Z$20,$AB$17:$AB$20)) -> 0.5324012194 | AC67: 0 | AD67: 0 | AG67: ParRate4Y | AH67: 0.001700015737 | AI67: 0.001700015225 | AJ67: =AJ78/AJ89 -> 0.001700014729 | AK67: 0.001700014249 | AL67: 0 | AM67: 0
J68: dH5Y | K68: -0.002422370185 | L68: -0.00492282615 | M68: -0.007506387142 | N68: -7.263641042 | O68: 8.9678377 | P68: 0 | X68: dPROT5Y | Y68: =(1-RecoveryRate)*YearFraction*(SUMPRODUCT($Z$5:$Z$8,$AB$5:$AB$8)-SUMPRODUCT($AA$9:$AA$24,$AB$9:$AB$24)) -> 0.5856334423 | Z68: =(1-RecoveryRate)*YearFraction*(SUMPRODUCT($Z$9:$Z$12,$AB$9:$AB$12)-SUMPRODUCT($AA$13:$AA$24,$AB$13:$AB$24)) -> 0.567263141 | AA68: =(1-RecoveryRate)*YearFraction*(SUMPRODUCT($Z$13:$Z$16,$AB$13:$AB$16)-SUMPRODUCT($AA$17:$AA$24,$AB$17:$AB$24)) -> 0.5490881674 | AB68: =(1-RecoveryRate)*YearFraction*(SUMPRODUCT($Z$17:$Z$20,$AB$17:$AB$20)-SUMPRODUCT($AA$21:$AA$24,$AB$21:$AB$24)) -> 0.5311961323 | AC68: =(1-RecoveryRate)*YearFraction*(SUMPRODUCT($Z$21:$Z$24,$AB$21:$AB$24)) -> 0.512783214 | AD68: 0 | AG68: ParRate5Y | AH68: 0.002433012762 | AI68: 0.002433012329 | AJ68: =AJ79/AJ90 -> 0.002433011911 | AK68: 0.002433011506 | AL68: =AL79/AL90 -> 0.002433011116 | AM68: 0
J69: dH10Y | K69: -0.0004206103599 | L69: -0.0008547812672 | M69: -0.0013033793 | N69: -0.001765350646 | O69: -1.991864399 | P69: 3.672350008 | X69: dPROT10Y | Y69: =(1-RecoveryRate)*YearFraction*(SUMPRODUCT($Z$5:$Z$8,$AB$5:$AB$8)-SUMPRODUCT($AA$9:$AA$44,$AB$9:$AB$44)) -> 0.5821063971 | Z69: =(1-RecoveryRate)*YearFraction*(SUMPRODUCT($Z$9:$Z$12,$AB$9:$AB$12)-SUMPRODUCT($AA$13:$AA$44,$AB$13:$AB$44)) -> 0.5637360959 | AA69: =(1-RecoveryRate)*YearFraction*(SUMPRODUCT($Z$13:$Z$16,$AB$13:$AB$16)-SUMPRODUCT($AA$17:$AA$44,$AB$17:$AB$44)) -> 0.5455611222 | AB69: =(1-RecoveryRate)*YearFraction*(SUMPRODUCT($Z$17:$Z$20,$AB$17:$AB$20)-SUMPRODUCT($AA$21:$AA$44,$AB$21:$AB$44)) -> 0.5276690872 | AC69: =(1-RecoveryRate)*YearFraction*(SUMPRODUCT($Z$21:$Z$24,$AB$21:$AB$24)-SUMPRODUCT($AA$25:$AA$44,$AB$25:$AB$44)) -> 0.5092561688 | AD69: =(1-RecoveryRate)*YearFraction*(SUMPRODUCT($Z$25:$Z$44,$AB$25:$AB$44)) -> 2.299167718 | AG69: ParRate10Y | AH69: 0.003000006966 | AI69: 0.003000006724 | AJ69: =AJ80/AJ91 -> 0.00300000649 | AK69: 0.003000006263 | AL69: =AL80/AL91 -> 0.003000006045 | AM69: 0.003000027227
Y72: dRiskyAnnuity/dH | AH72: Shifted Protection PV
X74: dRA/dH | Y74: dH1Y | Z74: dH2Y | AA74: dH3Y | AB74: dH4Y | AC74: dH5Y | AD74: dH10Y | AG74: dPROT/dH | AH74: dH1Y | AI74: dH2Y | AJ74: dH3Y | AK74: dH4Y | AL74: dH5Y | AM74: dH10Y
X75: dRA1Y | Y75: =-YearFraction*(0.5*YearFraction*SUMPRODUCT($Z$5:$Z$8,$AB$5:$AB$8)) -> -0.1225377604 | Z75: 0 | AA75: 0 | AB75: 0 | AC75: 0 | AD75: 0 | AG75: dPROT1Y | AH75: =LGD*SUMPRODUCT($AK$5:$AK$8,DiscFactors1Y) -> 980.5651369 | AI75: 0 | AJ75: 0 | AK75: 0 | AL75: 0 | AM75: 0
X76: dRA2Y | Y76: =-YearFraction*(0.5*YearFraction*SUMPRODUCT($Z$5:$Z$8,$AB$5:$AB$8)+SUM($AB$9:$AB$12)*(YearFraction*SUM($Z$9:$Z$12)+0.5*YearFraction*SUM($AA$9:$AA$12))) -> -1.071939213 | Z76: =-YearFraction*(0.5*YearFraction*SUMPRODUCT($Z$9:$Z$12,$AB$9:$AB$12)) -> -0.1186410628 | AA76: 0 | AB76: 0 | AC76: 0 | AD76: 0 | AG76: dPROT2Y | AH76: =LGD*SUMPRODUCT($AK$5:$AK$12,DiscFactors2Y) -> 2315.954324 | AI76: =LGD*SUMPRODUCT($AO$5:$AO$12,DiscFactors2Y) -> 2315.952574 | AJ76: 0 | AK76: 0 | AL76: 0 | AM76: 0
X77: dRA3Y | Y77: =-YearFraction*(0.5*YearFraction*SUMPRODUCT($Z$5:$Z$8,$AB$5:$AB$8)+SUM($AB$9:$AB$16)*(YearFraction*SUM($Z$9:$Z$16)+0.5*YearFraction*SUM($AA$9:$AA$16))) -> -3.858100574 | Z77: =-YearFraction*(0.5*YearFraction*SUMPRODUCT($Z$9:$Z$12,$AB$9:$AB$12)+SUM($AB$13:$AB$16)*(YearFraction*SUM($Z$13:$Z$16)+0.5*YearFraction*SUM($AA$13:$AA$16))) -> -1.037062612 | AA77: =-YearFraction*(0.5*YearFraction*SUMPRODUCT($Z$13:$Z$16,$AB$13:$AB$16)) -> -0.1147527027 | AB77: 0 | AC77: 0 | AD77: 0 | AG77: dPROT3Y | AH77: =LGD*SUMPRODUCT($AK$5:$AK$16,DiscFactors3Y) -> 4272.571923 | AI77: =LGD*SUMPRODUCT($AO$5:$AO$16,DiscFactors3Y) -> 4272.570173 | AJ77: =LGD*SUMPRODUCT($AS$5:$AS$16,DiscFactors3Y) -> 4272.568479 | AK77: 0 | AL77: 0 | AM77: 0
X78: dRA4Y | Y78: =-YearFraction*(0.5*YearFraction*SUMPRODUCT($Z$5:$Z$8,$AB$5:$AB$8)+SUM($AB$9:$AB$20)*(YearFraction*SUM($Z$9:$Z$20)+0.5*YearFraction*SUM($AA$9:$AA$20))) -> -8.388732235 | Z78: =-YearFraction*(0.5*YearFraction*SUMPRODUCT($Z$9:$Z$12,$AB$9:$AB$12)+SUM($AB$13:$AB$20)*(YearFraction*SUM($Z$13:$Z$20)+0.5*YearFraction*SUM($AA$13:$AA$20))) -> -3.730903006 | AA78: =-YearFraction*(0.5*YearFraction*SUMPRODUCT($Z$13:$Z$16,$AB$13:$AB$16)+SUM($AB$17:$AB$20)*(YearFraction*SUM($Z$17:$Z$20)+0.5*YearFraction*SUM($AA$17:$AA$20))) -> -1.002512985 | AB78: =-YearFraction*(0.5*YearFraction*SUMPRODUCT($Z$17:$Z$20,$AB$17:$AB$20)) -> -0.1109169207 | AC78: 0 | AD78: 0 | AG78: dPROT4Y | AH78: =LGD*SUMPRODUCT($AK$5:$AK$20,DiscFactors4Y) -> 6351.446567 | AI78: =LGD*SUMPRODUCT($AO$5:$AO$20,DiscFactors4Y) -> 6351.444817 | AJ78: =LGD*SUMPRODUCT($AS$5:$AS$20,DiscFactors4Y) -> 6351.443123 | AK78: =LGD*SUMPRODUCT($AW$5:$AW$20,DiscFactors4Y) -> 6351.441485 | AL78: 0 | AM78: 0
X79: dRA5Y | Y79: =-YearFraction*(0.5*YearFraction*SUMPRODUCT($Z$5:$Z$8,$AB$5:$AB$8)+SUM($AB$9:$AB$24)*(YearFraction*SUM($Z$9:$Z$24)+0.5*YearFraction*SUM($AA$9:$AA$24))) -> -14.56499177 | Z79: =-YearFraction*(0.5*YearFraction*SUMPRODUCT($Z$9:$Z$12,$AB$9:$AB$12)+SUM($AB$13:$AB$24)*(YearFraction*SUM($Z$13:$Z$24)+0.5*YearFraction*SUM($AA$13:$AA$24))) -> -8.1032259 | AA79: =-YearFraction*(0.5*YearFraction*SUMPRODUCT($Z$13:$Z$16,$AB$13:$AB$16)+SUM($AB$17:$AB$24)*(YearFraction*SUM($Z$17:$Z$24)+0.5*YearFraction*SUM($AA$17:$AA$24))) -> -3.601346173 | AB79: =-YearFraction*(0.5*YearFraction*SUMPRODUCT($Z$17:$Z$20,$AB$17:$AB$20)+SUM($AB$21:$AB$24)*(YearFraction*SUM($Z$21:$Z$24)+0.5*YearFraction*SUM($AA$21:$AA$24))) -> -0.9665408779 | AC79: =-YearFraction*(0.5*YearFraction*SUMPRODUCT($Z$21:$Z$24,$AB$21:$AB$24)) -> -0.1068298362 | AD79: 0 | AG79: dPROT5Y | AH79: =LGD*SUMPRODUCT($AK$5:$AK$24,DiscFactors5Y) -> 11171.79437 | AI79: =LGD*SUMPRODUCT($AO$5:$AO$24,DiscFactors5Y) -> 11171.79262 | AJ79: =LGD*SUMPRODUCT($AS$5:$AS$24,DiscFactors5Y) -> 11171.79093 | AK79: =LGD*SUMPRODUCT($AW$5:$AW$24,DiscFactors5Y) -> 11171.78929 | AL79: =LGD*SUMPRODUCT($BA$5:$BA$24,DiscFactors5Y) -> 11171.78771 | AM79: 0
X80: dRA10Y | Y80: =-YearFraction*(0.5*YearFraction*SUMPRODUCT($Z$5:$Z$8,$AB$5:$AB$8)+SUM($AB$9:$AB$44)*(YearFraction*SUM($Z$9:$Z$44)+0.5*YearFraction*SUM($AA$9:$AA$44))) -> -67.0564261 | Z80: =-YearFraction*(0.5*YearFraction*SUMPRODUCT($Z$9:$Z$12,$AB$9:$AB$12)+SUM($AB$13:$AB$44)*(YearFraction*SUM($Z$13:$Z$44)+0.5*YearFraction*SUM($AA$13:$AA$44))) -> -52.03991713 | AA80: =-YearFraction*(0.5*YearFraction*SUMPRODUCT($Z$13:$Z$16,$AB$13:$AB$16)+SUM($AB$17:$AB$44)*(YearFraction*SUM($Z$17:$Z$44)+0.5*YearFraction*SUM($AA$17:$AA$44))) -> -39.13167332 | AB80: =-YearFraction*(0.5*YearFraction*SUMPRODUCT($Z$17:$Z$20,$AB$17:$AB$20)+SUM($AB$21:$AB$44)*(YearFraction*SUM($Z$21:$Z$44)+0.5*YearFraction*SUM($AA$21:$AA$44))) -> -28.23784775 | AC80: =-YearFraction*(0.5*YearFraction*SUMPRODUCT($Z$21:$Z$24,$AB$21:$AB$24)+SUM($AB$25:$AB$44)*(YearFraction*SUM($Z$25:$Z$44)+0.5*YearFraction*SUM($AA$25:$AA$44))) -> -19.27387667 | AD80: =-YearFraction*(0.5*YearFraction*SUMPRODUCT($Z$25:$Z$44,$AB$25:$AB$44)) -> -0.4789932745 | AG80: dPROT10Y | AH80: =LGD*SUMPRODUCT($AK$5:$AK$44,DiscFactors10Y) -> 25279.97365 | AI80: =LGD*SUMPRODUCT($AO$5:$AO$44,DiscFactors10Y) -> 25279.9719 | AJ80: =LGD*SUMPRODUCT($AS$5:$AS$44,DiscFactors10Y) -> 25279.9702 | AK80: =LGD*SUMPRODUCT($AW$5:$AW$44,DiscFactors10Y) -> 25279.96856 | AL80: =LGD*SUMPRODUCT($BA$5:$BA$44,DiscFactors10Y) -> 25279.96698 | AM80: =LGD*SUMPRODUCT($BE$5:$BE$44,DiscFactors10Y) -> 25280.14397
AH83: Shifted Risky Annuity
AG85: dRA/dH | AH85: dH1Y | AI85: dH2Y | AJ85: dH3Y | AK85: dH4Y | AL85: dH5Y | AM85: dH10Y
AG86: dRA1Y | AH86: =Notional*YearFraction*(SUMPRODUCT($AJ$5:$AJ$8,DiscFactors1Y)+0.5*SUMPRODUCT($AK$5:$AK$8,DiscFactors1Y)) -> 980506.3065 | AI86: 0 | AJ86: 0 | AK86: 0 | AL86: 0 | AM86: 0
AG87: dRA2Y | AH87: =Notional*YearFraction*(SUMPRODUCT($AJ$5:$AJ$12,DiscFactors2Y)+0.5*SUMPRODUCT($AK$5:$AK$12,DiscFactors2Y)) -> 1929912.92 | AI87: =Notional*YearFraction*(SUMPRODUCT($AN$5:$AN$12,DiscFactors2Y)+0.5*SUMPRODUCT($AO$5:$AO$12,DiscFactors2Y)) -> 1929913.016 | AJ87: 0 | AK87: 0 | AL87: 0 | AM87: 0
AG88: dRA3Y | AH88: =Notional*YearFraction*(SUMPRODUCT($AJ$5:$AJ$16,DiscFactors3Y)+0.5*SUMPRODUCT($AK$5:$AK$16,DiscFactors3Y)) -> 2848342.079 | AI88: =Notional*YearFraction*(SUMPRODUCT($AN$5:$AN$16,DiscFactors3Y)+0.5*SUMPRODUCT($AO$5:$AO$16,DiscFactors3Y)) -> 2848342.175 | AJ88: =Notional*YearFraction*(SUMPRODUCT($AR$5:$AR$16,DiscFactors3Y)+0.5*SUMPRODUCT($AS$5:$AS$16,DiscFactors3Y)) -> 2848342.269 | AK88: 0 | AL88: 0 | AM88: 0
AG89: dRA4Y | AH89: =Notional*YearFraction*(SUMPRODUCT($AJ$5:$AJ$20,DiscFactors4Y)+0.5*SUMPRODUCT($AK$5:$AK$20,DiscFactors4Y)) -> 3736110.454 | AI89: =Notional*YearFraction*(SUMPRODUCT($AN$5:$AN$20,DiscFactors4Y)+0.5*SUMPRODUCT($AO$5:$AO$20,DiscFactors4Y)) -> 3736110.551 | AJ89: =Notional*YearFraction*(SUMPRODUCT($AR$5:$AR$20,DiscFactors4Y)+0.5*SUMPRODUCT($AS$5:$AS$20,DiscFactors4Y)) -> 3736110.644 | AK89: =Notional*YearFraction*(SUMPRODUCT($AV$5:$AV$20,DiscFactors4Y)+0.5*SUMPRODUCT($AW$5:$AW$20,DiscFactors4Y)) -> 3736110.735 | AL89: 0 | AM89: 0
AG90: dRA5Y | AH90: =Notional*YearFraction*(SUMPRODUCT($AJ$5:$AJ$24,DiscFactors5Y)+0.5*SUMPRODUCT($AK$5:$AK$24,DiscFactors5Y)) -> 4591753.298 | AI90: =Notional*YearFraction*(SUMPRODUCT($AN$5:$AN$24,DiscFactors5Y)+0.5*SUMPRODUCT($AO$5:$AO$24,DiscFactors5Y)) -> 4591753.395 | AJ90: =Notional*YearFraction*(SUMPRODUCT($AR$5:$AR$24,DiscFactors5Y)+0.5*SUMPRODUCT($AS$5:$AS$24,DiscFactors5Y)) -> 4591753.488 | AK90: =Notional*YearFraction*(SUMPRODUCT($AV$5:$AV$24,DiscFactors5Y)+0.5*SUMPRODUCT($AW$5:$AW$24,DiscFactors5Y)) -> 4591753.578 | AL90: =Notional*YearFraction*(SUMPRODUCT($AZ$5:$AZ$24,DiscFactors5Y)+0.5*SUMPRODUCT($BA$5:$BA$24,DiscFactors5Y)) -> 4591753.665 | AM90: 0
AG91: dRA10Y | AH91: =Notional*YearFraction*(SUMPRODUCT($AJ$5:$AJ$44,DiscFactors10Y)+0.5*SUMPRODUCT($AK$5:$AK$44,DiscFactors10Y)) -> 8426638.315 | AI91: =Notional*YearFraction*(SUMPRODUCT($AN$5:$AN$44,DiscFactors10Y)+0.5*SUMPRODUCT($AO$5:$AO$44,DiscFactors10Y)) -> 8426638.411 | AJ91: =Notional*YearFraction*(SUMPRODUCT($AR$5:$AR$44,DiscFactors10Y)+0.5*SUMPRODUCT($AS$5:$AS$44,DiscFactors10Y)) -> 8426638.505 | AK91: =Notional*YearFraction*(SUMPRODUCT($AV$5:$AV$44,DiscFactors10Y)+0.5*SUMPRODUCT($AW$5:$AW$44,DiscFactors10Y)) -> 8426638.595 | AL91: =Notional*YearFraction*(SUMPRODUCT($AZ$5:$AZ$44,DiscFactors10Y)+0.5*SUMPRODUCT($BA$5:$BA$44,DiscFactors10Y)) -> 8426638.682 | AM91: =Notional*YearFraction*(SUMPRODUCT($BD$5:$BD$44,DiscFactors10Y)+0.5*SUMPRODUCT($BE$5:$BE$44,DiscFactors10Y)) -> 8426638.179

Sheet CDS Price
O1: Premium Leg | X1: Protection Leg
B2: Credit Default Swap (CDS) | F2: Premium Leg | Q2: Protection Leg | Z2: Bloomberg CDSW Example
B3: Buy/Sell Protection | D3: BUY | F3: Time, T | G3: Premium | H3: HazardRate | I3: P(Survive), Q(T) | J3: P(Default) | K3: DiscFact, P(0,T) | L3: Premium PV | M3: Accrued PV | N3: Total PV | Q3: Time, T | R3: LGD | S3: HazardRate | T3: P(Survive), Q(T) | U3: P(Default) | V3: DiscFact, P(0,T) | W3: Total PV
B4: Notional | D4: 10000000 | F4: 0 | G4: - | H4: - | I4: 1 | J4: 0 | K4: 1 | L4: - | M4: - | N4: - | Q4: 0 | R4: ="-" -> - | S4: ="-" -> - | T4: 1 | U4: 0 | V4: 1 | W4: ="-" -> -
B5: CreditSpread (bps) | D5: 100 | F5: =F4+YearFraction -> 0.25 | G5: =IF($F5>CDS.Tenor,"-",CDS.PremiumSign*CDS.Notional*CDS.YearFraction*CDS.CreditSpread) -> -25000 | H5: =IF($F5>CDS.Tenor,"-",Interpolate(F5,Calibration.Times,Calibration.HazardRates)) -> 0.001666666691 | I5: =IF($F5>CDS.Tenor,"-",EXP(-H5*YearFraction)*I4) -> 0.9995834201 | J5: =IF($F5>CDS.Tenor,"-",I4-I5) -> 0.0004165798792 | K5: =IF($F5>CDS.Tenor,"-",EXP(-ZeroRate*F5)) -> 0.9924714517 | L5: =IF($F5>CDS.Tenor,"-",G5*I5*K5) -> -24801.4502 | M5: =IF($F5>CDS.Tenor,"-",0.5*G5*J5*K5) -> -5.168045468 | N5: =IF($F5>CDS.Tenor,"-",L5+M5) -> -24806.61825 | Q5: =Q4+YearFraction -> 0.25 | R5: =IF($F5>CDS.Tenor,"-",CDS.ProtectionSign*CDS.Notional*(1-CDS.RecoveryRate)) -> 6000000 | S5: =IF($F5>CDS.Tenor,"-",Interpolate(Q5,Calibration.Times,Calibration.HazardRates)) -> 0.001666666691 | T5: =IF($F5>CDS.Tenor,"-",EXP(-S5*YearFraction)*T4) -> 0.9995834201 | U5: =IF($F5>CDS.Tenor,"-",T4-T5) -> 0.0004165798792 | V5: =IF($F5>CDS.Tenor,"-",EXP(-ZeroRate*Q5)) -> 0.9924714517 | W5: =IF($F5>CDS.Tenor,"-",R5*U5*V5) -> 2480.661825
B6: Tenor (years) | D6: 5 | F6: 0.5 | G6: -25000 | H6: =IF($F6>CDS.Tenor,"-",Interpolate(F6,Calibration.Times,Calibration.HazardRates)) -> 0.001666666691 | I6: 0.9991670138 | J6: 0.0004164063404 | K6: 0.9849995825 | L6: -24604.47728 | M6: -5.127000893 | N6: -24609.60429 | Q6: 0.5 | R6: 6000000 | S6: =IF($F6>CDS.Tenor,"-",Interpolate(Q6,Calibration.Times,Calibration.HazardRates)) -> 0.001666666691 | T6: 0.9991670138 | U6: 0.0004164063404 | V6: 0.9849995825 | W6: 2460.960429
B7: RecoveryRate | D7: 0.4 | F7: 0.75 | G7: -25000 | H7: =IF($F7>CDS.Tenor,"-",Interpolate(F7,Calibration.Times,Calibration.HazardRates)) -> 0.001666666691 | I7: 0.9987507809 | J7: 0.0004162328739 | K7: 0.9775839656 | L7: -24409.06872 | M7: -5.086282293 | N7: -24414.15501 | Q7: 0.75 | R7: 6000000 | S7: =IF($F7>CDS.Tenor,"-",Interpolate(Q7,Calibration.Times,Calibration.HazardRates)) -> 0.001666666691 | T7: 0.9987507809 | U7: 0.0004162328739 | V7: 0.9775839656 | W7: 2441.415501
F8: 1 | G8: -25000 | H8: =IF($F8>CDS.Tenor,"-",Interpolate(F8,Calibration.Times,Calibration.HazardRates)) -> 0.001666666691 | I8: 0.9983347214 | J8: 0.0004160594797 | K8: 0.9702241775 | L8: -24215.2121 | M8: -5.04588708 | N8: -24220.25799 | Q8: 1 | R8: 6000000 | S8: =IF($F8>CDS.Tenor,"-",Interpolate(Q8,Calibration.Times,Calibration.HazardRates)) -> 0.001666666691 | T8: 0.9983347214 | U8: 0.0004160594797 | V8: 0.9702241775 | W8: 2422.025799
B9: Parameters | F9: 1.25 | G9: -25000 | H9: =IF($F9>CDS.Tenor,"-",Interpolate(F9,Calibration.Times,Calibration.HazardRates)) -> 0.002344252376 | I9: 0.9977498057 | J9: 0.0005849157203 | K9: 0.9629197979 | L9: -24018.82603 | M9: -7.040336589 | N9: -24025.86637 | Q9: 1.25 | R9: 6000000 | S9: =IF($F9>CDS.Tenor,"-",Interpolate(Q9,Calibration.Times,Calibration.HazardRates)) -> 0.002344252376 | T9: 0.9977498057 | U9: 0.0005849157203 | V9: 0.9629197979 | W9: 3379.361563
B10: PremiumSign | D10: =IF(D3="BUY",-1,1) -> -1 | F10: 1.5 | G10: -25000 | H10: =IF($F10>CDS.Tenor,"-",Interpolate(F10,Calibration.Times,Calibration.HazardRates)) -> 0.002344252376 | I10: 0.9971652327 | J10: 0.0005845730232 | K10: 0.9556704097 | L10: -23824.03266 | M10: -6.983239257 | N10: -23831.0159 | Q10: 1.5 | R10: 6000000 | S10: =IF($F10>CDS.Tenor,"-",Interpolate(Q10,Calibration.Times,Calibration.HazardRates)) -> 0.002344252376 | T10: 0.9971652327 | U10: 0.0005845730232 | V10: 0.9556704097 | W10: 3351.954843
B11: ProtectionSign | D11: =-D10 -> 1 | F11: 1.75 | G11: -25000 | H11: =IF($F11>CDS.Tenor,"-",Interpolate(F11,Calibration.Times,Calibration.HazardRates)) -> 0.002344252376 | I11: 0.9965810022 | J11: 0.0005842305269 | K11: 0.9484755989 | L11: -23630.81907 | M11: -6.926604986 | N11: -23637.74568 | Q11: 1.75 | R11: 6000000 | S11: =IF($F11>CDS.Tenor,"-",Interpolate(Q11,Calibration.Times,Calibration.HazardRates)) -> 0.002344252376 | T11: 0.9965810022 | U11: 0.0005842305269 | V11: 0.9484755989 | W11: 3324.770393
B12: CreditSpread (in %) | D12: =D5/10000 -> 0.01 | F12: 2 | G12: -25000 | H12: =IF($F12>CDS.Tenor,"-",Interpolate(F12,Calibration.Times,Calibration.HazardRates)) -> 0.002344252376 | I12: 0.9959971139 | J12: 0.0005838882313 | K12: 0.9413349545 | L12: -23439.17245 | M12: -6.87043002 | N12: -23446.04288 | Q12: 2 | R12: 6000000 | S12: =IF($F12>CDS.Tenor,"-",Interpolate(Q12,Calibration.Times,Calibration.HazardRates)) -> 0.002344252376 | T12: 0.9959971139 | U12: 0.0005838882313 | V12: 0.9413349545 | W12: 3297.80641
B13: YearFraction | D13: 0.25 | F13: 2.25 | G13: -25000 | H13: =IF($F13>CDS.Tenor,"-",Interpolate(F13,Calibration.Times,Calibration.HazardRates)) -> 0.003550659857 | I13: 0.9951133945 | J13: 0.0008837194612 | K13: 0.9342480689 | L13: -23242.06918 | M13: -10.320165 | N13: -23252.38934 | Q13: 2.25 | R13: 6000000 | S13: =IF($F13>CDS.Tenor,"-",Interpolate(Q13,Calibration.Times,Calibration.HazardRates)) -> 0.003550659857 | T13: 0.9951133945 | U13: 0.0008837194612 | V13: 0.9342480689 | W13: 4953.6792
F14: 2.5 | G14: -25000 | H14: =IF($F14>CDS.Tenor,"-",Interpolate(F14,Calibration.Times,Calibration.HazardRates)) -> 0.003550659857 | I14: 0.9942304591 | J14: 0.0008829353624 | K14: 0.9272145372 | L14: -23046.62337 | M14: -10.23338129 | N14: -23056.85676 | Q14: 2.5 | R14: 6000000 | S14: =IF($F14>CDS.Tenor,"-",Interpolate(Q14,Calibration.Times,Calibration.HazardRates)) -> 0.003550659857 | T14: 0.9942304591 | U14: 0.0008829353624 | V14: 0.9272145372 | W14: 4912.023021
B15: Results | F15: 2.75 | G15: -25000 | H15: =IF($F15>CDS.Tenor,"-",Interpolate(F15,Calibration.Times,Calibration.HazardRates)) -> 0.003550659857 | I15: 0.9933483071 | J15: 0.0008821519594 | K15: 0.9202339578 | L15: -22852.8211 | M15: -10.14732736 | N15: -22862.96843 | Q15: 2.75 | R15: 6000000 | S15: =IF($F15>CDS.Tenor,"-",Interpolate(Q15,Calibration.Times,Calibration.HazardRates)) -> 0.003550659857 | T15: 0.9933483071 | U15: 0.0008821519594 | V15: 0.9202339578 | W15: 4870.717134
B16: PV( CDS ) | D16: =SUM(D17:D18) -> -347458.0047 | F16: 3 | G16: -25000 | H16: =IF($F16>CDS.Tenor,"-",Interpolate(F16,Calibration.Times,Calibration.HazardRates)) -> 0.003550659857 | I16: 0.9924669379 | J16: 0.0008813692515 | K16: 0.913305932 | L16: -22660.64854 | M16: -10.06199707 | N16: -22670.71054 | Q16: 3 | R16: 6000000 | S16: =IF($F16>CDS.Tenor,"-",Interpolate(Q16,Calibration.Times,Calibration.HazardRates)) -> 0.003550659857 | T16: 0.9924669379 | U16: 0.0008813692515 | V16: 0.913305932 | W16: 4829.758594
B17: PV( Premium Leg ) | D17: =SUM($N$4:$N$44) -> -459175.3708 | F17: 3.25 | G17: -25000 | H17: =IF($F17>CDS.Tenor,"-",Interpolate(F17,Calibration.Times,Calibration.HazardRates)) -> 0.00390281006 | I17: 0.9914990577 | J17: 0.0009678802289 | K17: 0.9064300642 | L17: -22468.11386 | M17: -10.96644673 | N17: -22479.08031 | Q17: 3.25 | R17: 6000000 | S17: =IF($F17>CDS.Tenor,"-",Interpolate(Q17,Calibration.Times,Calibration.HazardRates)) -> 0.00390281006 | T17: 0.9914990577 | U17: 0.0009678802289 | V17: 0.9064300642 | W17: 5263.894428
B18: PV( Protection Leg) | D18: =SUM($W$5:$W$44) -> 111717.3661 | F18: 3.5 | G18: -25000 | H18: =IF($F18>CDS.Tenor,"-",Interpolate(F18,Calibration.Times,Calibration.HazardRates)) -> 0.00390281006 | I18: 0.9905321213 | J18: 0.0009669363263 | K18: 0.8996059617 | L18: -22277.21504 | M18: -10.87327105 | N18: -22288.08831 | Q18: 3.5 | R18: 6000000 | S18: =IF($F18>CDS.Tenor,"-",Interpolate(Q18,Calibration.Times,Calibration.HazardRates)) -> 0.00390281006 | T18: 0.9905321213 | U18: 0.0009669363263 | V18: 0.8996059617 | W18: 5219.170102
B19: Risky Annuity | D19: =ABS(CDS.PremiumLegPV/CDS.CreditSpread) -> 45917537.08 | F19: 3.75 | G19: -25000 | H19: =IF($F19>CDS.Tenor,"-",Interpolate(F19,Calibration.Times,Calibration.HazardRates)) -> 0.00390281006 | I19: 0.989566128 | J19: 0.0009659933442 | K19: 0.8928332348 | L19: -22087.93818 | M19: -10.78088703 | N19: -22098.71906 | Q19: 3.75 | R19: 6000000 | S19: =IF($F19>CDS.Tenor,"-",Interpolate(Q19,Calibration.Times,Calibration.HazardRates)) -> 0.00390281006 | T19: 0.989566128 | U19: 0.0009659933442 | V19: 0.8928332348 | W19: 5174.825774
B20: PV01 | D20: =D19*0.01% -> 4591.753708 | F20: 4 | G20: -25000 | H20: =IF($F20>CDS.Tenor,"-",Interpolate(F20,Calibration.Times,Calibration.HazardRates)) -> 0.00390281006 | I20: 0.9886010767 | J20: 0.0009650512817 | K20: 0.8861114966 | L20: -21900.26949 | M20: -10.68928794 | N20: -21910.95878 | Q20: 4 | R20: 6000000 | S20: =IF($F20>CDS.Tenor,"-",Interpolate(Q20,Calibration.Times,Calibration.HazardRates)) -> 0.00390281006 | T20: 0.9886010767 | U20: 0.0009650512817 | V20: 0.8861114966 | W20: 5130.858213
B21: Par Spread (%) | D21: =ABS(D18/D19) -> 0.002432999965 | F21: 4.25 | G21: -25000 | H21: =IF($F21>CDS.Tenor,"-",Interpolate(F21,Calibration.Times,Calibration.HazardRates)) -> 0.009389334297 | I21: 0.9862832217 | J21: 0.002317855045 | K21: 0.8794403635 | L21: -21684.43187 | M21: -25.48019104 | N21: -21709.91206 | Q21: 4.25 | R21: 6000000 | S21: =IF($F21>CDS.Tenor,"-",Interpolate(Q21,Calibration.Times,Calibration.HazardRates)) -> 0.009389334297 | T21: 0.9862832217 | U21: 0.002317855045 | V21: 0.8794403635 | W21: 12230.4917
B22: Par Spread (bps) | D22: =D21*10000 -> 24.32999965 | F22: 4.5 | G22: -25000 | H22: =IF($F22>CDS.Tenor,"-",Interpolate(F22,Calibration.Times,Calibration.HazardRates)) -> 0.009389334297 | I22: 0.983970801 | J22: 0.002312420647 | K22: 0.8728194542 | L22: -21470.72144 | M22: -25.22907159 | N22: -21495.95051 | Q22: 4.5 | R22: 6000000 | S22: =IF($F22>CDS.Tenor,"-",Interpolate(Q22,Calibration.Times,Calibration.HazardRates)) -> 0.009389334297 | T22: 0.983970801 | U22: 0.002312420647 | V22: 0.8728194542 | W22: 12109.95436
F23: 4.75 | G23: -25000 | H23: =IF($F23>CDS.Tenor,"-",Interpolate(F23,Calibration.Times,Calibration.HazardRates)) -> 0.009389334297 | I23: 0.981663802 | J23: 0.00230699899 | K23: 0.8662483908 | L23: -21259.11722 | M23: -24.98042703 | N23: -21284.09765 | Q23: 4.75 | R23: 6000000 | S23: =IF($F23>CDS.Tenor,"-",Interpolate(Q23,Calibration.Times,Calibration.HazardRates)) -> 0.009389334297 | T23: 0.981663802 | U23: 0.00230699899 | V23: 0.8662483908 | W23: 11990.60498
F24: 5 | G24: -25000 | H24: =IF($F24>CDS.Tenor,"-",Interpolate(F24,Calibration.Times,Calibration.HazardRates)) -> 0.009389334297 | I24: 0.979362212 | J24: 0.002301590045 | K24: 0.859726798 | L24: -21049.59846 | M24: -24.73423299 | N24: -21074.3327 | Q24: 5 | R24: 6000000 | S24: =IF($F24>CDS.Tenor,"-",Interpolate(Q24,Calibration.Times,Calibration.HazardRates)) -> 0.009389334297 | T24: 0.979362212 | U24: 0.002301590045 | V24: 0.859726798 | W24: 11872.43184
F25: 5.25 | G25: - | H25: =IF($F25>CDS.Tenor,"-",Interpolate(F25,Calibration.Times,Calibration.HazardRates)) -> - | I25: - | J25: - | K25: - | L25: - | M25: - | N25: - | Q25: 5.25 | R25: - | S25: =IF($F25>CDS.Tenor,"-",Interpolate(Q25,Calibration.Times,Calibration.HazardRates)) -> - | T25: - | U25: - | V25: - | W25: -
F26: 5.5 | G26: - | H26: =IF($F26>CDS.Tenor,"-",Interpolate(F26,Calibration.Times,Calibration.HazardRates)) -> - | I26: - | J26: - | K26: - | L26: - | M26: - | N26: - | Q26: 5.5 | R26: - | S26: =IF($F26>CDS.Tenor,"-",Interpolate(Q26,Calibration.Times,Calibration.HazardRates)) -> - | T26: - | U26: - | V26: - | W26: -
F27: 5.75 | G27: - | H27: =IF($F27>CDS.Tenor,"-",Interpolate(F27,Calibration.Times,Calibration.HazardRates)) -> - | I27: - | J27: - | K27: - | L27: - | M27: - | N27: - | Q27: 5.75 | R27: - | S27: =IF($F27>CDS.Tenor,"-",Interpolate(Q27,Calibration.Times,Calibration.HazardRates)) -> - | T27: - | U27: - | V27: - | W27: -
F28: 6 | G28: - | H28: =IF($F28>CDS.Tenor,"-",Interpolate(F28,Calibration.Times,Calibration.HazardRates)) -> - | I28: - | J28: - | K28: - | L28: - | M28: - | N28: - | Q28: 6 | R28: - | S28: =IF($F28>CDS.Tenor,"-",Interpolate(Q28,Calibration.Times,Calibration.HazardRates)) -> - | T28: - | U28: - | V28: - | W28: -
F29: 6.25 | G29: - | H29: =IF($F29>CDS.Tenor,"-",Interpolate(F29,Calibration.Times,Calibration.HazardRates)) -> - | I29: - | J29: - | K29: - | L29: - | M29: - | N29: - | Q29: 6.25 | R29: - | S29: =IF($F29>CDS.Tenor,"-",Interpolate(Q29,Calibration.Times,Calibration.HazardRates)) -> - | T29: - | U29: - | V29: - | W29: -
F30: 6.5 | G30: - | H30: =IF($F30>CDS.Tenor,"-",Interpolate(F30,Calibration.Times,Calibration.HazardRates)) -> - | I30: - | J30: - | K30: - | L30: - | M30: - | N30: - | Q30: 6.5 | R30: - | S30: =IF($F30>CDS.Tenor,"-",Interpolate(Q30,Calibration.Times,Calibration.HazardRates)) -> - | T30: - | U30: - | V30: - | W30: -
F31: 6.75 | G31: - | H31: =IF($F31>CDS.Tenor,"-",Interpolate(F31,Calibration.Times,Calibration.HazardRates)) -> - | I31: - | J31: - | K31: - | L31: - | M31: - | N31: - | Q31: 6.75 | R31: - | S31: =IF($F31>CDS.Tenor,"-",Interpolate(Q31,Calibration.Times,Calibration.HazardRates)) -> - | T31: - | U31: - | V31: - | W31: -
F32: 7 | G32: - | H32: =IF($F32>CDS.Tenor,"-",Interpolate(F32,Calibration.Times,Calibration.HazardRates)) -> - | I32: - | J32: - | K32: - | L32: - | M32: - | N32: - | Q32: 7 | R32: - | S32: =IF($F32>CDS.Tenor,"-",Interpolate(Q32,Calibration.Times,Calibration.HazardRates)) -> - | T32: - | U32: - | V32: - | W32: -
F33: 7.25 | G33: - | H33: =IF($F33>CDS.Tenor,"-",Interpolate(F33,Calibration.Times,Calibration.HazardRates)) -> - | I33: - | J33: - | K33: - | L33: - | M33: - | N33: - | Q33: 7.25 | R33: - | S33: =IF($F33>CDS.Tenor,"-",Interpolate(Q33,Calibration.Times,Calibration.HazardRates)) -> - | T33: - | U33: - | V33: - | W33: -
F34: 7.5 | G34: - | H34: =IF($F34>CDS.Tenor,"-",Interpolate(F34,Calibration.Times,Calibration.HazardRates)) -> - | I34: - | J34: - | K34: - | L34: - | M34: - | N34: - | Q34: 7.5 | R34: - | S34: =IF($F34>CDS.Tenor,"-",Interpolate(Q34,Calibration.Times,Calibration.HazardRates)) -> - | T34: - | U34: - | V34: - | W34: -
F35: 7.75 | G35: - | H35: =IF($F35>CDS.Tenor,"-",Interpolate(F35,Calibration.Times,Calibration.HazardRates)) -> - | I35: - | J35: - | K35: - | L35: - | M35: - | N35: - | Q35: 7.75 | R35: - | S35: =IF($F35>CDS.Tenor,"-",Interpolate(Q35,Calibration.Times,Calibration.HazardRates)) -> - | T35: - | U35: - | V35: - | W35: -
F36: 8 | G36: - | H36: =IF($F36>CDS.Tenor,"-",Interpolate(F36,Calibration.Times,Calibration.HazardRates)) -> - | I36: - | J36: - | K36: - | L36: - | M36: - | N36: - | Q36: 8 | R36: - | S36: =IF($F36>CDS.Tenor,"-",Interpolate(Q36,Calibration.Times,Calibration.HazardRates)) -> - | T36: - | U36: - | V36: - | W36: -
F37: 8.25 | G37: - | H37: =IF($F37>CDS.Tenor,"-",Interpolate(F37,Calibration.Times,Calibration.HazardRates)) -> - | I37: - | J37: - | K37: - | L37: - | M37: - | N37: - | Q37: 8.25 | R37: - | S37: =IF($F37>CDS.Tenor,"-",Interpolate(Q37,Calibration.Times,Calibration.HazardRates)) -> - | T37: - | U37: - | V37: - | W37: -
F38: 8.5 | G38: - | H38: =IF($F38>CDS.Tenor,"-",Interpolate(F38,Calibration.Times,Calibration.HazardRates)) -> - | I38: - | J38: - | K38: - | L38: - | M38: - | N38: - | Q38: 8.5 | R38: - | S38: =IF($F38>CDS.Tenor,"-",Interpolate(Q38,Calibration.Times,Calibration.HazardRates)) -> - | T38: - | U38: - | V38: - | W38: -
F39: 8.75 | G39: - | H39: =IF($F39>CDS.Tenor,"-",Interpolate(F39,Calibration.Times,Calibration.HazardRates)) -> - | I39: - | J39: - | K39: - | L39: - | M39: - | N39: - | Q39: 8.75 | R39: - | S39: =IF($F39>CDS.Tenor,"-",Interpolate(Q39,Calibration.Times,Calibration.HazardRates)) -> - | T39: - | U39: - | V39: - | W39: -
F40: 9 | G40: - | H40: =IF($F40>CDS.Tenor,"-",Interpolate(F40,Calibration.Times,Calibration.HazardRates)) -> - | I40: - | J40: - | K40: - | L40: - | M40: - | N40: - | Q40: 9 | R40: - | S40: =IF($F40>CDS.Tenor,"-",Interpolate(Q40,Calibration.Times,Calibration.HazardRates)) -> - | T40: - | U40: - | V40: - | W40: -
F41: 9.25 | G41: - | H41: =IF($F41>CDS.Tenor,"-",Interpolate(F41,Calibration.Times,Calibration.HazardRates)) -> - | I41: - | J41: - | K41: - | L41: - | M41: - | N41: - | Q41: 9.25 | R41: - | S41: =IF($F41>CDS.Tenor,"-",Interpolate(Q41,Calibration.Times,Calibration.HazardRates)) -> - | T41: - | U41: - | V41: - | W41: -
F42: 9.5 | G42: - | H42: =IF($F42>CDS.Tenor,"-",Interpolate(F42,Calibration.Times,Calibration.HazardRates)) -> - | I42: - | J42: - | K42: - | L42: - | M42: - | N42: - | Q42: 9.5 | R42: - | S42: =IF($F42>CDS.Tenor,"-",Interpolate(Q42,Calibration.Times,Calibration.HazardRates)) -> - | T42: - | U42: - | V42: - | W42: -
F43: 9.75 | G43: - | H43: =IF($F43>CDS.Tenor,"-",Interpolate(F43,Calibration.Times,Calibration.HazardRates)) -> - | I43: - | J43: - | K43: - | L43: - | M43: - | N43: - | Q43: 9.75 | R43: - | S43: =IF($F43>CDS.Tenor,"-",Interpolate(Q43,Calibration.Times,Calibration.HazardRates)) -> - | T43: - | U43: - | V43: - | W43: -
F44: 10 | G44: - | H44: =IF($F44>CDS.Tenor,"-",Interpolate(F44,Calibration.Times,Calibration.HazardRates)) -> - | I44: - | J44: - | K44: - | L44: - | M44: - | N44: - | Q44: 10 | R44: - | S44: =IF($F44>CDS.Tenor,"-",Interpolate(Q44,Calibration.Times,Calibration.HazardRates)) -> - | T44: - | U44: - | V44: - | W44: -
